Workbook

Sheet TEMPLATE INSTRUCTIONS
B1: Net Present Value(NPV) and Benefit Calculation Template Instructions
B2: This template was developed to assess options that address a need or take advantage of an opportunity to enhance a level of service . The template compares investment options for one particular project (ex. should a road be build using asphalt or concrete?). It cannot be used to evaluate different types of projects (ex. do we build a road or a new library?). This template includes a Net Present Value (NPV) calculation module and Option Benefits Evaluation module. NPV is the difference between the present value of cash inflows and the present value of cash outflows over a period of time. NPV is used in capital budgeting and investment planning to analyze the profitability of a projected investment or project. NPV compares the value of the dollar today to the value of that same dollar in the future —taking returns and inflation into account. The Option Benefits Evaluation process follows the same principles and methodology used during the Capital Investment Prioritization stage of the Investment Planning Framework. It provides an objective means of selecting the best option to address an identified need, consistent with the department's long term investment plans for maintaining or enhancing levels of service.
B3: The NPV is intended to be used to facilitate discussion with stakeholders to understand the current cost of various solutions and to select the option best suited for business case development. Multiple options are to be presented for projects in order to provide feasible alternatives. While multiple options are not required for programs, the NPV calculation and review of benefits for the consolidated projects within the program is still required. This information will carry through to the options analysis in the Business Case template and could also be used to provide information for the Capital Detail Sheets and other reports.
B4: There are four parts to the NPV template: 1) Project Options Analysis Summary Tab This tab is used to enter the general information that identifies the options being assessed. 2) Status Quo Tab This tab is used to evaluate the costs of maintaining the current behavior and provides a baseline for assessing operating costs for the options being considered. 3) NPV Option Tabs The Net Present Value of up to four options are calculated using the NPV Options 1 to NPV Options 4 worksheets. The calculation is broken down into Capex (capital expenditures) and Opex (operational expenditures). 4) Benefits Tab Use the Benefits Evaluation Procedure to evaluate the benefits of each option under consideration for a project. Benefit assessment must be performed for each option. Data for the project options analysis summary, status quo and options tabs is to be entered only in the areas that are shaded in YELLOW.
B6: Project Options Analysis Summary Tab
B7: Project Details | C7: Investment Title: Assign investment title. This should be relevant to the project being proposed and will also be used in the Business Case as the investment title. NPV Author: Individual(s) involved in completing the NPV and Benefit Calculation Template. Date: Date template was completed Estimate Year: This is "Year 0" for the calculation of the Project's NPV. Estimate Year should be the current year in which next capital budget is being prepared (i.e. 2019 for a business case being prepared for 2020)
B8: Financial Data | C8: Table of rates used in options analysis. These rates will be used to calculate lifecycle costs and net present value of investments. Calculation will be completed automatically based on the capital and operational costs inputted into the status quo and option tabs. Rates will be reviewed annually and updated as required.
B9: Project Analysis Summary: Status Quo Analysis | C9: Status quo is defined as maintaining the current operations and maintenance behavior. The NPV of the operating costs is automatically populated based on the operating cost baseline established in the Status Quo tab.
B10: Project Analysis Summary: NPV and Benefit Options Summary Table | C10: Under option description, provide a Title to designate each Option being assessed. This title is automatically transferred to the corresponding worksheets. The remaining cells in the table are automatically generated based on the data inputted into the four options tabs. • NPV Capex: Amount calculated from the NPV Option worksheet for that option • NPV Opex: Amount calculated from the NPV Option worksheet for that option • NPV: Total of the Capex and Opex NPV • Benefit Score: The benefits score from the Benefit worksheet for that option • Benefit Score adjusted for Program: The worksheet will adjust the benefit score for the number of projects within a program. . • Cost/Benefit: Divides the NPV by the life-cycle benefit score. Lower is better. This table can be used to provide information for the Capital Detail sheets or as a summary for other reports. NPV Selected Option & Rationale: Outline key assumptions, notes, or commentary that support the option selected.
B11: Project Analysis Summary: Lifecycle Cost Summary Table | C11: All cells in this table are automatically generated based on the information entered into the Status Quo and Options tabs. Lifecycle costs for the selected option provide the starting point for creating a Basis of Estimate for that option as it demonstrates the true cost of ownership.
B12: Document Control | C12: As projects progress and more accurate information becomes available, it is recommended that the NPV be revisited and updated to confirm that the option previously selected is still the optimal choice. When revisions are necessary, identify items that changed from the previous version of the NPV. The NPV author must use discretion as to how much detail to include; it is suggested to note only the items that have substantially changed the estimate. When substantial changes are made a new version of the NPV should be saved (include version number in the file name) and the previous version archived for reference. Fill in the version number, date, author and rationale for the revision (ex. draft, final, approved, preliminary design, etc.) in the table.
B14: Status Quo Tab
B15: Type | C15: Choose one option from the list that best describes the investment item. The relevant Opex options for completing the status quo section are: Operate and Maintain.
B16: Description | C16: Provide a brief description of the Opex item.
B17: Operating Cost NPV | C17: The NPV will be automatically calculated based on the information provided in the cash flow columns.
B18: Cash Flow | C18: Provide the operating cash flows for each year. The status quo will be used as a baseline for assessing operating costs for each option and the lifecycle period of each option considered, and for the status quo, must be equivalent to the option with the longest period up to a maximum of 30 years. This helps account for major maintenance events or renewals that may take place within the lifecycle of each option. Operating Escalation Costs (inflation rates) will be automatically calculated for costs beyond year 0 within the lifecycle period.
B19: Total Lifecycle Operating Cost | C19: The total lifecycle operating costs will be automatically calculated based on the information provided in the cash flow columns.
B21: NPV Options Tabs
B22: Complete a separate NPV option tab for each option identified. There are two sections to be filled out for each option, one to detail capital costs and another for operating costs. This template allows users to evaluate up to 4 options. If additional options are to be evaluated please contact the Corporate Asset Management Office for an expanded template.
B23: Type | C23: Choose one option from the list that best describes the investment item. The Capex options are: Pre-construction, Construction, Decommission, Equipment, Interest Charges and Capex Benefits. A Capex Benefit generally relates to the sale of an asset; for example the sale of land. The Opex options are: Operate, Maintain, Salaries & Benefits, Debt & Financing Charges and Opex Benefits. Incorporate only the items for which the annual operating expenditures will vary as a result of the investment (i.e. net cost or net saving on operating cost compared to the Opex identified in the Status Quo tab). An Opex Benefit relates to all the potential operating benefits as a result of the investment, such as new revenue generation activity or reduction in costs (e.g. sale of excess electricity from solar panels on a new building, reduction in energy usage, etc.).
B24: Description | C24: Provide a brief description of the Capex or Opex item.
B25: Total NPV | C25: The NPV will be automatically calculated based on the cash flow information provided in the cash flow columns.
B26: Cash Flow | C26: Provide the cash flows for each year up to a maximum of 30 years. When comparing investment options for a particular project, the lifecycle period of each option considered must be equivalent to the option with the longest period (30 yr. max.). This helps account for major maintenance events or renewals that may take place within the lifecycle of each option. For Capital Costs, the number must include: 1. Cost for planning, product/materials and execution (i.e. the amount required to address the Need) 2. Construction Escalation Costs (inflation rates) will be automatically calculated for costs beyond year 0 within the lifecycle period. 3. Any other cost as appropriate and determined by the Business Unit For Operating Costs, the number must include: 1. The Net Increase in operating costs as a result of the investment (e.g. if the current operating cost (status quo) of the asset is $1000, and the operating cost of the new asset is $1100, the net increase in operating cost should be $100). 2. The Net decrease in operating costs as a result of the investment (e.g. if the current energy cost (status quo) to operate the asset is $750 and the energy cost for the new asset is $500, the net savings is $250). 3. Operating Escalation Costs (inflation rates) will be automatically calculated for costs beyond year 0 within the lifecycle period.
B27: Total Lifecycle Costs | C27: The lifecycle capital, operating, and total costs will be automatically calculated based on the information provided in the cash flow columns.
B29: Benefits Tab
B30: STEP 1: Describe the Options For each option start by filling out the "General" section and related columns:
B31: Options | C31: Automatically generated based on option title entered in the NPV Summary Tab.
B32: Investment Type | C32: Choose between the two types of investments: Project or Program. A selection must be made in order for benefits to be calculated.
B33: Number of Projects included in the Program | C33: Put the number of projects included in the program. For linear asset projects, it may be difficult to know the number of Projects included in the Program. In that case, estimate the number of projects you will/could do for the investment amount requested. A number must be entered in order for program benefits to calculate.
B34: Option Total NPV ($k) | C34: The option NPV will be automatically filled in based on the information provided in the NPV Options section.
B35: STEP 2: Assess the Benefits of each Option This step includes understanding what the main driver of the project is and then assessing the benefits for each option to calculate a total benefit score for each option. The process of assessing benefits is outlined in greater detail within the Investment Planning: Benefit Evaluation Procedure.

Sheet Project Options Analysis
C2: Project Options Analysis Summary
B5: PROJECT DETAILS
B6: Investment Title:
B7: NPV Author:
B8: Date:
B9: Estimate Year | C9: 2023
B11: FINANCIAL DATA
B12: Capital Inflation Rate: | C12: 0.03 | D12: Source: Economic Research Office
B13: Operating Inflation Rate: | C13: 0.02 | D13: Source: Economic Research Office
B14: Discount Rate: | C14: 0.055 | D14: The discount rate represents the City's borrowing cost. This rate will be applied to initial capital costs and all operational/maintenance activities beyond year 0 within the lifecycle period. Discounting must also be applied to revenue should those values be available. Source: Corporate Finance - Treasury Division
B16: PROJECT ANALYSIS SUMMARY
B17: Status Quo Analysis
B18: Baseline NPV Opex (Sk) | F18: ='Status Quo'!G3 -> 0
B19: *Status quo is defined as maintaining the current operations and maintenance behaviour. This is typically the O&M recommendations defined by the manufacturer or designer. Status quo provides the realistic operating cost baseline to be used to compare the project options against.
B20: NPV and Benefit Options Summary Table
B21: Option Number | C21: Option Description | E21: NPV Capex ($k) | F21: NPV Opex ($k) | G21: NPV ($k) | H21: Benefit Score (in points) | I21: Cost/Benefit | J21: Cost/Benefit Rank
B22: Option 1 | E22: =IF('NPV Option1'!G3=0,"",'NPV Option1'!G3) ->  | F22: =IF('NPV Option1'!G4=0,"",'NPV Option1'!G4) ->  | G22: =IF('NPV Option1'!G3+'NPV Option1'!G4=0,"",'NPV Option1'!G3+'NPV Option1'!G4) ->  | H22: =Benefits!Z16 -> 0 | I22: =Benefits!AB16 ->  | J22: =Benefits!AC16 -> 
B23: Option 2 | E23: =IF('NPV Option 2'!G3=0,"",'NPV Option 2'!G3) ->  | F23: =IF('NPV Option 2'!G4=0,"",'NPV Option 2'!G4) ->  | G23: =IF('NPV Option 2'!G3+'NPV Option 2'!G4=0,"",'NPV Option 2'!G3+'NPV Option 2'!G4) ->  | H23: =Benefits!Z17 -> 0 | I23: =Benefits!AB17 ->  | J23: =Benefits!AC17 -> 
B24: Option 3 | E24: =IF('NPV Option 3'!G3=0,"",'NPV Option 3'!G3) ->  | F24: =IF('NPV Option 3'!G4=0,"",'NPV Option 3'!G4) ->  | G24: =IF('NPV Option 3'!G3+'NPV Option 3'!G4=0,"",'NPV Option 3'!G3+'NPV Option 3'!G4) ->  | H24: =Benefits!Z18 -> 0 | I24: =Benefits!AB18 ->  | J24: =Benefits!AC18 -> 
B25: Option 4 | E25: =IF('NPV Option 4'!G3=0,"",'NPV Option 4'!G3) ->  | F25: =IF('NPV Option 4'!G4=0,"",'NPV Option 4'!G4) ->  | G25: =IF('NPV Option 4'!G3+'NPV Option 4'!G4=0,"",'NPV Option 4'!G3+'NPV Option 4'!G4) ->  | H25: =Benefits!Z19 -> 0 | I25: =Benefits!AB19 ->  | J25: =Benefits!AC19 -> 
B27: NPV Selected Option & Rationale (Inlcude key assumptions, notes, or commentary that support the option selected)
B29: Lifecycle Cost Summary Table
B30: Option Number | C30: Description | E30: Total Lifecycle Capital Cost ($k) | G30: Total Lifecycle Operating Cost ($k) | I30: Total Lifecycle Cost ($k)
B31: Option 1 | C31: =C22 -> 0 | E31: =IF('NPV Option1'!C42=0,"",'NPV Option1'!C42) ->  | G31: =IF('NPV Option1'!C43=0,"",'NPV Option1'!C43) ->  | I31: =IF('NPV Option1'!C42+'NPV Option1'!C43=0,"",'NPV Option1'!C42+'NPV Option1'!C43) -> 
B32: Option 2 | C32: =C23 -> 0 | E32: =IF('NPV Option 2'!C42=0,"",'NPV Option 2'!C42) ->  | G32: =IF('NPV Option 2'!C43=0,"",'NPV Option 2'!C43) ->  | I32: =IF('NPV Option 2'!C42+'NPV Option 2'!C43=0,"",'NPV Option 2'!C42+'NPV Option 2'!C43) -> 
B33: Option 3 | C33: =C24 -> 0 | E33: =IF('NPV Option 3'!C42=0,"",'NPV Option 3'!C42) ->  | G33: =IF('NPV Option 3'!C43=0,"",'NPV Option 3'!C43) ->  | I33: =IF('NPV Option 3'!C42+'NPV Option 3'!C43=0,"",'NPV Option 3'!C42+'NPV Option 3'!C43) -> 
B34: Option 4 | C34: =C25 -> 0 | E34: =IF('NPV Option 4'!C42=0,"",'NPV Option 4'!C42) ->  | G34: =IF('NPV Option 4'!C43=0,"",'NPV Option 4'!C43) ->  | I34: =IF('NPV Option 4'!C42+'NPV Option 4'!C43=0,"",'NPV Option 4'!C42+'NPV Option 4'!C43) -> 
B36: Document Control
B37: Major Changes from Previous Version
B38: Version # | C38: Date | E38: Author | G38: Rationale

Sheet Status Quo
A1: City of Winnipeg
A2: Business Case Development
A3: Operating Cost and NPV Calculation | D3: NPV Total Operating Cost | G3: =BZ21 -> 0
A5: Status Quo Analysis | C5: Detail by Year ($k)
C6: =EstimateYear -> 2023 | D6: =C6+1 -> 2024 | E6: =D6+1 -> 2025 | F6: 2026 | G6: 2027 | H6: 2028 | I6: 2029 | J6: 2030 | K6: 2031 | L6: 2032 | M6: 2033 | N6: 2034 | O6: 2035 | P6: 2036 | Q6: 2037 | R6: 2038 | S6: 2039 | T6: 2040 | U6: 2041 | V6: 2042 | W6: 2043 | X6: 2044 | Y6: 2045 | Z6: 2046 | AA6: 2047 | AB6: 2048 | AC6: 2049 | AD6: 2050 | AE6: 2051 | AF6: 2052 | AG6: 2053
B7: Cost Escalation/Operating Inflation | C7: 0 | D7: ='Project Options Analysis '!$C$13 -> 0.02 | E7: ='Project Options Analysis '!$C$13 -> 0.02 | F7: ='Project Options Analysis '!$C$13 -> 0.02 | G7: ='Project Options Analysis '!$C$13 -> 0.02 | H7: ='Project Options Analysis '!$C$13 -> 0.02 | I7: ='Project Options Analysis '!$C$13 -> 0.02 | J7: ='Project Options Analysis '!$C$13 -> 0.02 | K7: ='Project Options Analysis '!$C$13 -> 0.02 | L7: ='Project Options Analysis '!$C$13 -> 0.02 | M7: ='Project Options Analysis '!$C$13 -> 0.02 | N7: ='Project Options Analysis '!$C$13 -> 0.02 | O7: ='Project Options Analysis '!$C$13 -> 0.02 | P7: ='Project Options Analysis '!$C$13 -> 0.02 | Q7: ='Project Options Analysis '!$C$13 -> 0.02 | R7: ='Project Options Analysis '!$C$13 -> 0.02 | S7: ='Project Options Analysis '!$C$13 -> 0.02 | T7: ='Project Options Analysis '!$C$13 -> 0.02 | U7: ='Project Options Analysis '!$C$13 -> 0.02 | V7: ='Project Options Analysis '!$C$13 -> 0.02 | W7: ='Project Options Analysis '!$C$13 -> 0.02 | X7: ='Project Options Analysis '!$C$13 -> 0.02 | Y7: ='Project Options Analysis '!$C$13 -> 0.02 | Z7: ='Project Options Analysis '!$C$13 -> 0.02 | AA7: ='Project Options Analysis '!$C$13 -> 0.02 | AB7: ='Project Options Analysis '!$C$13 -> 0.02 | AC7: ='Project Options Analysis '!$C$13 -> 0.02 | AD7: ='Project Options Analysis '!$C$13 -> 0.02 | AE7: ='Project Options Analysis '!$C$13 -> 0.02 | AF7: ='Project Options Analysis '!$C$13 -> 0.02 | AG7: ='Project Options Analysis '!$C$13 -> 0.02
A9: Operating Cost | B9: Description | C9: Enter cash flow in current dollars ($K). Inflation will be automatically calculated.
BZ19: Total NPV | CA19: =EstimateYear -> 2023 | CB19: =CA19+1 -> 2024 | CC19: =CB19+1 -> 2025 | CD19: =CC19+1 -> 2026 | CE19: =CD19+1 -> 2027 | CF19: =CE19+1 -> 2028 | CG19: =CF19+1 -> 2029 | CH19: =CG19+1 -> 2030 | CI19: =CH19+1 -> 2031 | CJ19: =CI19+1 -> 2032 | CK19: =CJ19+1 -> 2033 | CL19: =CK19+1 -> 2034 | CM19: =CL19+1 -> 2035 | CN19: =CM19+1 -> 2036 | CO19: =CN19+1 -> 2037 | CP19: =CO19+1 -> 2038 | CQ19: =CP19+1 -> 2039 | CR19: =CQ19+1 -> 2040 | CS19: =CR19+1 -> 2041 | CT19: =CS19+1 -> 2042 | CU19: =CT19+1 -> 2043 | CV19: =CU19+1 -> 2044 | CW19: =CV19+1 -> 2045 | CX19: =CW19+1 -> 2046 | CY19: =CX19+1 -> 2047 | CZ19: =CY19+1 -> 2048 | DA19: =CZ19+1 -> 2049 | DB19: =DA19+1 -> 2050 | DC19: =DB19+1 -> 2051 | DD19: =DC19+1 -> 2052 | DE19: =DD19+1 -> 2053
A20: Total Annual Opex: | C20: =SUM(C10:C19) -> 0 | D20: 0 | E20: 0 | F20: 0 | G20: 0 | H20: 0 | I20: 0 | J20: 0 | K20: 0 | L20: 0 | M20: 0 | N20: 0 | O20: 0 | P20: 0 | Q20: 0 | R20: 0 | S20: 0 | T20: 0 | U20: 0 | V20: 0 | W20: 0 | X20: 0 | Y20: 0 | Z20: 0 | AA20: 0 | AB20: 0 | AC20: 0 | AD20: 0 | AE20: 0 | AF20: 0 | AG20: 0 | BZ20: =CA20+NPV(DiscountRate,CB20:DE20) -> 0 | CA20: =IF(C20="",0,C20) -> 0 | CB20: =IF(D20="",0,D20) -> 0 | CC20: =IF(E20="",0,E20) -> 0 | CD20: =IF(F20="",0,F20) -> 0 | CE20: =IF(G20="",0,G20) -> 0 | CF20: =IF(H20="",0,H20) -> 0 | CG20: =IF(I20="",0,I20) -> 0 | CH20: =IF(J20="",0,J20) -> 0 | CI20: =IF(K20="",0,K20) -> 0 | CJ20: =IF(L20="",0,L20) -> 0 | CK20: =IF(M20="",0,M20) -> 0 | CL20: =IF(N20="",0,N20) -> 0 | CM20: =IF(O20="",0,O20) -> 0 | CN20: =IF(P20="",0,P20) -> 0 | CO20: =IF(Q20="",0,Q20) -> 0 | CP20: =IF(R20="",0,R20) -> 0 | CQ20: =IF(S20="",0,S20) -> 0 | CR20: =IF(T20="",0,T20) -> 0 | CS20: =IF(U20="",0,U20) -> 0 | CT20: =IF(V20="",0,V20) -> 0 | CU20: =IF(W20="",0,W20) -> 0 | CV20: =IF(X20="",0,X20) -> 0 | CW20: =IF(Y20="",0,Y20) -> 0 | CX20: =IF(Z20="",0,Z20) -> 0 | CY20: =IF(AA20="",0,AA20) -> 0 | CZ20: =IF(AB20="",0,AB20) -> 0 | DA20: =IF(AC20="",0,AC20) -> 0 | DB20: =IF(AD20="",0,AD20) -> 0 | DC20: =IF(AE20="",0,AE20) -> 0 | DD20: =IF(AF20="",0,AF20) -> 0 | DE20: 0
A21: Total Annual Opex with Inflation: | C21: =ROUNDUP(C20*POWER((1+C$7), (C$6-$C$6)),0) -> 0 | D21: =ROUNDUP(D20*POWER((1+D$7), (D$6-$C$6)),0) -> 0 | E21: 0 | F21: 0 | G21: 0 | H21: 0 | I21: 0 | J21: 0 | K21: 0 | L21: 0 | M21: 0 | N21: 0 | O21: 0 | P21: 0 | Q21: 0 | R21: 0 | S21: 0 | T21: 0 | U21: 0 | V21: 0 | W21: 0 | X21: 0 | Y21: 0 | Z21: 0 | AA21: 0 | AB21: 0 | AC21: 0 | AD21: 0 | AE21: 0 | AF21: 0 | AG21: 0 | BZ21: =CA21+NPV(DiscountRate,CB21:DE21) -> 0 | CA21: =IF(C21="",0,C21) -> 0 | CB21: =IF(D21="",0,D21) -> 0 | CC21: =IF(E21="",0,E21) -> 0 | CD21: =IF(F21="",0,F21) -> 0 | CE21: =IF(G21="",0,G21) -> 0 | CF21: =IF(H21="",0,H21) -> 0 | CG21: =IF(I21="",0,I21) -> 0 | CH21: =IF(J21="",0,J21) -> 0 | CI21: =IF(K21="",0,K21) -> 0 | CJ21: =IF(L21="",0,L21) -> 0 | CK21: =IF(M21="",0,M21) -> 0 | CL21: =IF(N21="",0,N21) -> 0 | CM21: =IF(O21="",0,O21) -> 0 | CN21: =IF(P21="",0,P21) -> 0 | CO21: =IF(Q21="",0,Q21) -> 0 | CP21: =IF(R21="",0,R21) -> 0 | CQ21: =IF(S21="",0,S21) -> 0 | CR21: =IF(T21="",0,T21) -> 0 | CS21: =IF(U21="",0,U21) -> 0 | CT21: =IF(V21="",0,V21) -> 0 | CU21: =IF(W21="",0,W21) -> 0 | CV21: =IF(X21="",0,X21) -> 0 | CW21: =IF(Y21="",0,Y21) -> 0 | CX21: =IF(Z21="",0,Z21) -> 0 | CY21: =IF(AA21="",0,AA21) -> 0 | CZ21: =IF(AB21="",0,AB21) -> 0 | DA21: =IF(AC21="",0,AC21) -> 0 | DB21: =IF(AD21="",0,AD21) -> 0 | DC21: =IF(AE21="",0,AE21) -> 0 | DD21: =IF(AF21="",0,AF21) -> 0 | DE21: =IF(AG21="",0,AG21) -> 0
A23: TOTAL LIFECYCLE OPERATING COST | C23: =SUM(C21:AG21) -> 0

Sheet NPV Option1
A1: City of Winnipeg
A2: Business Case Development | D2: LIFECYCLE COST SUMMARY NET PRESENT VALUE (NPV)
A3: Lifecycle Cost and NPV Calculation | D3: NPV Total Capital Cost | G3: =BZ26 -> 0
D4: NPV Total Operating Cost | G4: =BZ40 -> 0
A5: Project: | D5: TOTAL NET PRESENT VALUE COST | G5: =BZ26+BZ40 -> 0
A6: ='Project Options Analysis '!C6 -> 0
A7: ="Option 1: "&'Project Options Analysis '!C22 -> Option 1:
B9: Cost Escalatation/Construction Inflation | C9: 0 | D9: ='Project Options Analysis '!$C$12 -> 0.03 | E9: ='Project Options Analysis '!$C$12 -> 0.03 | F9: ='Project Options Analysis '!$C$12 -> 0.03 | G9: ='Project Options Analysis '!$C$12 -> 0.03 | H9: ='Project Options Analysis '!$C$12 -> 0.03 | I9: ='Project Options Analysis '!$C$12 -> 0.03 | J9: ='Project Options Analysis '!$C$12 -> 0.03 | K9: ='Project Options Analysis '!$C$12 -> 0.03 | L9: ='Project Options Analysis '!$C$12 -> 0.03 | M9: ='Project Options Analysis '!$C$12 -> 0.03 | N9: ='Project Options Analysis '!$C$12 -> 0.03 | O9: ='Project Options Analysis '!$C$12 -> 0.03 | P9: ='Project Options Analysis '!$C$12 -> 0.03 | Q9: ='Project Options Analysis '!$C$12 -> 0.03 | R9: ='Project Options Analysis '!$C$12 -> 0.03 | S9: ='Project Options Analysis '!$C$12 -> 0.03 | T9: ='Project Options Analysis '!$C$12 -> 0.03 | U9: ='Project Options Analysis '!$C$12 -> 0.03 | V9: ='Project Options Analysis '!$C$12 -> 0.03 | W9: ='Project Options Analysis '!$C$12 -> 0.03 | X9: ='Project Options Analysis '!$C$12 -> 0.03 | Y9: ='Project Options Analysis '!$C$12 -> 0.03 | Z9: ='Project Options Analysis '!$C$12 -> 0.03 | AA9: ='Project Options Analysis '!$C$12 -> 0.03 | AB9: ='Project Options Analysis '!$C$12 -> 0.03 | AC9: ='Project Options Analysis '!$C$12 -> 0.03 | AD9: ='Project Options Analysis '!$C$12 -> 0.03 | AE9: ='Project Options Analysis '!$C$12 -> 0.03 | AF9: ='Project Options Analysis '!$C$12 -> 0.03 | AG9: ='Project Options Analysis '!$C$12 -> 0.03
B10: Cost Escalation/Operating Inflation | C10: 0 | D10: ='Project Options Analysis '!$C$13 -> 0.02 | E10: ='Project Options Analysis '!$C$13 -> 0.02 | F10: ='Project Options Analysis '!$C$13 -> 0.02 | G10: ='Project Options Analysis '!$C$13 -> 0.02 | H10: ='Project Options Analysis '!$C$13 -> 0.02 | I10: ='Project Options Analysis '!$C$13 -> 0.02 | J10: ='Project Options Analysis '!$C$13 -> 0.02 | K10: ='Project Options Analysis '!$C$13 -> 0.02 | L10: ='Project Options Analysis '!$C$13 -> 0.02 | M10: ='Project Options Analysis '!$C$13 -> 0.02 | N10: ='Project Options Analysis '!$C$13 -> 0.02 | O10: ='Project Options Analysis '!$C$13 -> 0.02 | P10: ='Project Options Analysis '!$C$13 -> 0.02 | Q10: ='Project Options Analysis '!$C$13 -> 0.02 | R10: ='Project Options Analysis '!$C$13 -> 0.02 | S10: ='Project Options Analysis '!$C$13 -> 0.02 | T10: ='Project Options Analysis '!$C$13 -> 0.02 | U10: ='Project Options Analysis '!$C$13 -> 0.02 | V10: ='Project Options Analysis '!$C$13 -> 0.02 | W10: ='Project Options Analysis '!$C$13 -> 0.02 | X10: ='Project Options Analysis '!$C$13 -> 0.02 | Y10: ='Project Options Analysis '!$C$13 -> 0.02 | Z10: ='Project Options Analysis '!$C$13 -> 0.02 | AA10: ='Project Options Analysis '!$C$13 -> 0.02 | AB10: ='Project Options Analysis '!$C$13 -> 0.02 | AC10: ='Project Options Analysis '!$C$13 -> 0.02 | AD10: ='Project Options Analysis '!$C$13 -> 0.02 | AE10: ='Project Options Analysis '!$C$13 -> 0.02 | AF10: ='Project Options Analysis '!$C$13 -> 0.02 | AG10: ='Project Options Analysis '!$C$13 -> 0.02
A12: Cost Components | C12: Detail by Year ($k)
A13: Type | B13: Description | C13: =EstimateYear -> 2023 | D13: =C13+1 -> 2024 | E13: =D13+1 -> 2025 | F13: 2026 | G13: 2027 | H13: 2028 | I13: 2029 | J13: 2030 | K13: 2031 | L13: 2032 | M13: 2033 | N13: 2034 | O13: 2035 | P13: 2036 | Q13: 2037 | R13: 2038 | S13: 2039 | T13: 2040 | U13: 2041 | V13: 2042 | W13: 2043 | X13: 2044 | Y13: 2045 | Z13: 2046 | AA13: 2047 | AB13: 2048 | AC13: 2049 | AD13: 2050 | AE13: 2051 | AF13: 2052 | AG13: 2053
A14: Capital Cost | C14: Enter cash flow in current dollars ($K). Inflation will be automatically calculated.
BZ24: Total NPV | CA24: =EstimateYear -> 2023 | CB24: =CA24+1 -> 2024 | CC24: 2025 | CD24: 2026 | CE24: 2027 | CF24: 2028 | CG24: 2029 | CH24: 2030 | CI24: 2031 | CJ24: 2032 | CK24: 2033 | CL24: 2034 | CM24: 2035 | CN24: 2036 | CO24: 2037 | CP24: 2038 | CQ24: 2039 | CR24: 2040 | CS24: 2041 | CT24: 2042 | CU24: 2043 | CV24: 2044 | CW24: 2045 | CX24: 2046 | CY24: 2047 | CZ24: 2048 | DA24: 2049 | DB24: 2050 | DC24: 2051 | DD24: 2052 | DE24: 2053
A25: Total Annual Capex: | C25: =SUM(C15:C24) -> 0 | D25: 0 | E25: 0 | F25: 0 | G25: 0 | H25: 0 | I25: 0 | J25: 0 | K25: 0 | L25: 0 | M25: 0 | N25: 0 | O25: 0 | P25: 0 | Q25: 0 | R25: 0 | S25: 0 | T25: 0 | U25: 0 | V25: 0 | W25: 0 | X25: 0 | Y25: 0 | Z25: 0 | AA25: 0 | AB25: 0 | AC25: 0 | AD25: 0 | AE25: 0 | AF25: 0 | AG25: 0 | BZ25: =CA25+NPV(DiscountRate,CB25:DE25) -> 0 | CA25: =IF(C25="",0,C25) -> 0 | CB25: 0 | CC25: 0 | CD25: 0 | CE25: 0 | CF25: 0 | CG25: 0 | CH25: 0 | CI25: 0 | CJ25: 0 | CK25: 0 | CL25: 0 | CM25: 0 | CN25: 0 | CO25: 0 | CP25: 0 | CQ25: =IF(S25="",0,S25) -> 0 | CR25: 0 | CS25: 0 | CT25: 0 | CU25: 0 | CV25: 0 | CW25: 0 | CX25: 0 | CY25: 0 | CZ25: 0 | DA25: 0 | DB25: 0 | DC25: 0 | DD25: 0 | DE25: 0
A26: Total Annual Capex with Inflation | C26: =ROUNDUP(C25*POWER((1+C$9),(C$13-$C$13)),0) -> 0 | D26: =ROUNDUP(D25*POWER((1+D$9),(D$13-$C$13)),0) -> 0 | E26: =ROUNDUP(E25*POWER((1+E$9),(E$13-$C$13)),0) -> 0 | F26: 0 | G26: 0 | H26: 0 | I26: 0 | J26: 0 | K26: 0 | L26: 0 | M26: 0 | N26: 0 | O26: 0 | P26: 0 | Q26: 0 | R26: 0 | S26: 0 | T26: 0 | U26: 0 | V26: 0 | W26: 0 | X26: 0 | Y26: 0 | Z26: 0 | AA26: 0 | AB26: 0 | AC26: 0 | AD26: 0 | AE26: 0 | AF26: 0 | AG26: 0 | BZ26: =CA26+NPV(DiscountRate,CB26:DE26) -> 0 | CA26: 0 | CB26: 0 | CC26: 0 | CD26: 0 | CE26: 0 | CF26: 0 | CG26: 0 | CH26: 0 | CI26: 0 | CJ26: 0 | CK26: 0 | CL26: 0 | CM26: 0 | CN26: 0 | CO26: 0 | CP26: 0 | CQ26: 0 | CR26: 0 | CS26: 0 | CT26: 0 | CU26: 0 | CV26: 0 | CW26: 0 | CX26: 0 | CY26: 0 | CZ26: 0 | DA26: 0 | DB26: 0 | DC26: 0 | DD26: 0 | DE26: 0
A28: Operating Cost | C28: Enter cash flow in current dollars ($K). Inflation will be automatically calculated.
BZ38: Total NPV | CA38: =EstimateYear -> 2023 | CB38: =CA38+1 -> 2024 | CC38: =CB38+1 -> 2025 | CD38: =CC38+1 -> 2026 | CE38: =CD38+1 -> 2027 | CF38: =CE38+1 -> 2028 | CG38: =CF38+1 -> 2029 | CH38: =CG38+1 -> 2030 | CI38: =CH38+1 -> 2031 | CJ38: =CI38+1 -> 2032 | CK38: =CJ38+1 -> 2033 | CL38: =CK38+1 -> 2034 | CM38: =CL38+1 -> 2035 | CN38: =CM38+1 -> 2036 | CO38: =CN38+1 -> 2037 | CP38: =CO38+1 -> 2038 | CQ38: =CP38+1 -> 2039 | CR38: =CQ38+1 -> 2040 | CS38: =CR38+1 -> 2041 | CT38: =CS38+1 -> 2042 | CU38: =CT38+1 -> 2043 | CV38: =CU38+1 -> 2044 | CW38: =CV38+1 -> 2045 | CX38: =CW38+1 -> 2046 | CY38: =CX38+1 -> 2047 | CZ38: =CY38+1 -> 2048 | DA38: =CZ38+1 -> 2049 | DB38: =DA38+1 -> 2050 | DC38: =DB38+1 -> 2051 | DD38: =DC38+1 -> 2052 | DE38: =DD38+1 -> 2053
A39: Total Annual Opex: | C39: =SUM(C29:C38) -> 0 | D39: =SUM(D29:D38) -> 0 | E39: 0 | F39: 0 | G39: 0 | H39: 0 | I39: 0 | J39: 0 | K39: 0 | L39: 0 | M39: 0 | N39: 0 | O39: 0 | P39: 0 | Q39: 0 | R39: 0 | S39: 0 | T39: 0 | U39: 0 | V39: 0 | W39: 0 | X39: 0 | Y39: 0 | Z39: 0 | AA39: 0 | AB39: 0 | AC39: 0 | AD39: 0 | AE39: 0 | AF39: 0 | AG39: 0 | BZ39: =CA39+NPV(DiscountRate,CB39:DE39) -> 0 | CA39: =IF(C39="",0,C39) -> 0 | CB39: 0 | CC39: 0 | CD39: 0 | CE39: 0 | CF39: 0 | CG39: 0 | CH39: 0 | CI39: 0 | CJ39: 0 | CK39: 0 | CL39: 0 | CM39: 0 | CN39: 0 | CO39: 0 | CP39: 0 | CQ39: =IF(S39="",0,S39) -> 0 | CR39: 0 | CS39: 0 | CT39: 0 | CU39: 0 | CV39: 0 | CW39: 0 | CX39: 0 | CY39: 0 | CZ39: 0 | DA39: 0 | DB39: 0 | DC39: 0 | DD39: 0 | DE39: 0
A40: Total Annual Opex with Inflation: | C40: =ROUNDUP(C39*POWER((1+C$10), (C$13-$C$13)),0) -> 0 | D40: =ROUNDUP(D39*POWER((1+D$10), (D$13-$C$13)),0) -> 0 | E40: =ROUNDUP(E39*POWER((1+E$10), (E$13-$C$13)),0) -> 0 | F40: 0 | G40: 0 | H40: 0 | I40: 0 | J40: 0 | K40: 0 | L40: 0 | M40: 0 | N40: 0 | O40: 0 | P40: 0 | Q40: 0 | R40: 0 | S40: 0 | T40: 0 | U40: 0 | V40: 0 | W40: 0 | X40: 0 | Y40: 0 | Z40: 0 | AA40: 0 | AB40: 0 | AC40: 0 | AD40: 0 | AE40: 0 | AF40: 0 | AG40: 0 | BZ40: =CA40+NPV(DiscountRate,CB40:DE40) -> 0 | CA40: 0 | CB40: 0 | CC40: 0 | CD40: 0 | CE40: 0 | CF40: 0 | CG40: 0 | CH40: 0 | CI40: 0 | CJ40: 0 | CK40: 0 | CL40: 0 | CM40: 0 | CN40: 0 | CO40: 0 | CP40: 0 | CQ40: 0 | CR40: 0 | CS40: 0 | CT40: 0 | CU40: 0 | CV40: 0 | CW40: 0 | CX40: 0 | CY40: 0 | CZ40: 0 | DA40: 0 | DB40: 0 | DC40: 0 | DD40: 0 | DE40: 0
A42: TOTAL LIFECYCLE CAPITAL COST | C42: =SUM(C26:AG26) -> 0
A43: TOTAL LIFECYCLE OPERATING COST | C43: =SUM(C40:AG40) -> 0
A44: TOTAL LIFECYCLE COST | C44: =C42+C43 -> 0

Sheet NPV Option 2
A1: City of Winnipeg
A2: Business Case Development | D2: LIFECYCLE COST SUMMARY NET PRESENT VALUE (NPV)
A3: Lifecycle Cost and NPV Calculation | D3: NPV Total Capital Cost | G3: =BZ26 -> 0
D4: NPV Total Operating Cost | G4: =BZ40 -> 0
A5: Project: | D5: TOTAL NET PRESENT VALUE COST | G5: =BZ26+BZ40 -> 0
A6: ='Project Options Analysis '!C6 -> 0
A7: ="Option 2: "&'Project Options Analysis '!C23 -> Option 2:
B9: Cost Escalatation/Construction Inflation | C9: 0 | D9: ='Project Options Analysis '!$C$12 -> 0.03 | E9: ='Project Options Analysis '!$C$12 -> 0.03 | F9: ='Project Options Analysis '!$C$12 -> 0.03 | G9: ='Project Options Analysis '!$C$12 -> 0.03 | H9: ='Project Options Analysis '!$C$12 -> 0.03 | I9: ='Project Options Analysis '!$C$12 -> 0.03 | J9: ='Project Options Analysis '!$C$12 -> 0.03 | K9: ='Project Options Analysis '!$C$12 -> 0.03 | L9: ='Project Options Analysis '!$C$12 -> 0.03 | M9: ='Project Options Analysis '!$C$12 -> 0.03 | N9: ='Project Options Analysis '!$C$12 -> 0.03 | O9: ='Project Options Analysis '!$C$12 -> 0.03 | P9: ='Project Options Analysis '!$C$12 -> 0.03 | Q9: ='Project Options Analysis '!$C$12 -> 0.03 | R9: ='Project Options Analysis '!$C$12 -> 0.03 | S9: ='Project Options Analysis '!$C$12 -> 0.03 | T9: ='Project Options Analysis '!$C$12 -> 0.03 | U9: ='Project Options Analysis '!$C$12 -> 0.03 | V9: ='Project Options Analysis '!$C$12 -> 0.03 | W9: ='Project Options Analysis '!$C$12 -> 0.03 | X9: ='Project Options Analysis '!$C$12 -> 0.03 | Y9: ='Project Options Analysis '!$C$12 -> 0.03 | Z9: ='Project Options Analysis '!$C$12 -> 0.03 | AA9: ='Project Options Analysis '!$C$12 -> 0.03 | AB9: ='Project Options Analysis '!$C$12 -> 0.03 | AC9: ='Project Options Analysis '!$C$12 -> 0.03 | AD9: ='Project Options Analysis '!$C$12 -> 0.03 | AE9: ='Project Options Analysis '!$C$12 -> 0.03 | AF9: ='Project Options Analysis '!$C$12 -> 0.03 | AG9: ='Project Options Analysis '!$C$12 -> 0.03
B10: Cost Escalation/Operating Inflation | C10: 0 | D10: ='Project Options Analysis '!$C$13 -> 0.02 | E10: ='Project Options Analysis '!$C$13 -> 0.02 | F10: ='Project Options Analysis '!$C$13 -> 0.02 | G10: ='Project Options Analysis '!$C$13 -> 0.02 | H10: ='Project Options Analysis '!$C$13 -> 0.02 | I10: ='Project Options Analysis '!$C$13 -> 0.02 | J10: ='Project Options Analysis '!$C$13 -> 0.02 | K10: ='Project Options Analysis '!$C$13 -> 0.02 | L10: ='Project Options Analysis '!$C$13 -> 0.02 | M10: ='Project Options Analysis '!$C$13 -> 0.02 | N10: ='Project Options Analysis '!$C$13 -> 0.02 | O10: ='Project Options Analysis '!$C$13 -> 0.02 | P10: ='Project Options Analysis '!$C$13 -> 0.02 | Q10: ='Project Options Analysis '!$C$13 -> 0.02 | R10: ='Project Options Analysis '!$C$13 -> 0.02 | S10: ='Project Options Analysis '!$C$13 -> 0.02 | T10: ='Project Options Analysis '!$C$13 -> 0.02 | U10: ='Project Options Analysis '!$C$13 -> 0.02 | V10: ='Project Options Analysis '!$C$13 -> 0.02 | W10: ='Project Options Analysis '!$C$13 -> 0.02 | X10: ='Project Options Analysis '!$C$13 -> 0.02 | Y10: ='Project Options Analysis '!$C$13 -> 0.02 | Z10: ='Project Options Analysis '!$C$13 -> 0.02 | AA10: ='Project Options Analysis '!$C$13 -> 0.02 | AB10: ='Project Options Analysis '!$C$13 -> 0.02 | AC10: ='Project Options Analysis '!$C$13 -> 0.02 | AD10: ='Project Options Analysis '!$C$13 -> 0.02 | AE10: ='Project Options Analysis '!$C$13 -> 0.02 | AF10: ='Project Options Analysis '!$C$13 -> 0.02 | AG10: ='Project Options Analysis '!$C$13 -> 0.02
A12: Cost Components | C12: Detail by Year ($k)
A13: Type | B13: Description | C13: =EstimateYear -> 2023 | D13: =C13+1 -> 2024 | E13: =D13+1 -> 2025 | F13: 2026 | G13: 2027 | H13: 2028 | I13: 2029 | J13: 2030 | K13: 2031 | L13: 2032 | M13: 2033 | N13: 2034 | O13: 2035 | P13: 2036 | Q13: 2037 | R13: 2038 | S13: 2039 | T13: 2040 | U13: 2041 | V13: 2042 | W13: 2043 | X13: 2044 | Y13: 2045 | Z13: 2046 | AA13: 2047 | AB13: 2048 | AC13: 2049 | AD13: 2050 | AE13: 2051 | AF13: 2052 | AG13: 2053
A14: Capital Cost | C14: Enter cash flow in current dollars ($K). Inflation will be automatically calculated.
BZ24: Total NPV | CA24: =EstimateYear -> 2023 | CB24: =CA24+1 -> 2024 | CC24: 2025 | CD24: 2026 | CE24: 2027 | CF24: 2028 | CG24: 2029 | CH24: 2030 | CI24: 2031 | CJ24: 2032 | CK24: 2033 | CL24: 2034 | CM24: 2035 | CN24: 2036 | CO24: 2037 | CP24: 2038 | CQ24: 2039 | CR24: 2040 | CS24: 2041 | CT24: 2042 | CU24: 2043 | CV24: 2044 | CW24: 2045 | CX24: 2046 | CY24: 2047 | CZ24: 2048 | DA24: 2049 | DB24: 2050 | DC24: 2051 | DD24: 2052 | DE24: 2053
A25: Total Annual Capex: | C25: =SUM(C15:C24) -> 0 | D25: =SUM(D15:D24) -> 0 | E25: 0 | F25: 0 | G25: 0 | H25: 0 | I25: 0 | J25: 0 | K25: 0 | L25: 0 | M25: 0 | N25: 0 | O25: 0 | P25: 0 | Q25: 0 | R25: 0 | S25: 0 | T25: 0 | U25: 0 | V25: 0 | W25: 0 | X25: 0 | Y25: 0 | Z25: 0 | AA25: 0 | AB25: 0 | AC25: 0 | AD25: 0 | AE25: 0 | AF25: 0 | AG25: 0 | BZ25: =CA25+NPV(DiscountRate,CB25:DE25) -> 0 | CA25: =IF(C25="",0,C25) -> 0 | CB25: 0 | CC25: 0 | CD25: 0 | CE25: 0 | CF25: 0 | CG25: 0 | CH25: 0 | CI25: 0 | CJ25: 0 | CK25: 0 | CL25: 0 | CM25: 0 | CN25: 0 | CO25: 0 | CP25: 0 | CQ25: =IF(S25="",0,S25) -> 0 | CR25: 0 | CS25: 0 | CT25: 0 | CU25: 0 | CV25: 0 | CW25: 0 | CX25: 0 | CY25: 0 | CZ25: 0 | DA25: 0 | DB25: 0 | DC25: 0 | DD25: 0 | DE25: 0
A26: Total Annual Capex with Inflation | C26: =ROUNDUP(C25*POWER((1+C$9),(C$13-$C$13)),0) -> 0 | D26: =ROUNDUP(D25*POWER((1+D$9),(D$13-$C$13)),0) -> 0 | E26: =ROUNDUP(E25*POWER((1+E$9),(E$13-$C$13)),0) -> 0 | F26: 0 | G26: 0 | H26: 0 | I26: 0 | J26: 0 | K26: 0 | L26: 0 | M26: 0 | N26: 0 | O26: 0 | P26: 0 | Q26: 0 | R26: 0 | S26: 0 | T26: 0 | U26: 0 | V26: 0 | W26: 0 | X26: 0 | Y26: 0 | Z26: 0 | AA26: 0 | AB26: 0 | AC26: 0 | AD26: 0 | AE26: 0 | AF26: 0 | AG26: 0 | BZ26: =CA26+NPV(DiscountRate,CB26:DE26) -> 0 | CA26: 0 | CB26: 0 | CC26: 0 | CD26: 0 | CE26: 0 | CF26: 0 | CG26: 0 | CH26: 0 | CI26: 0 | CJ26: 0 | CK26: 0 | CL26: 0 | CM26: 0 | CN26: 0 | CO26: 0 | CP26: 0 | CQ26: 0 | CR26: 0 | CS26: 0 | CT26: 0 | CU26: 0 | CV26: 0 | CW26: 0 | CX26: 0 | CY26: 0 | CZ26: 0 | DA26: 0 | DB26: 0 | DC26: 0 | DD26: 0 | DE26: 0
A28: Operating Cost | C28: Enter cash flow in current dollars ($K). Inflation will be automatically calculated.
BZ38: Total NPV | CA38: =EstimateYear -> 2023 | CB38: =CA38+1 -> 2024 | CC38: 2025 | CD38: 2026 | CE38: 2027 | CF38: 2028 | CG38: 2029 | CH38: 2030 | CI38: 2031 | CJ38: 2032 | CK38: 2033 | CL38: 2034 | CM38: 2035 | CN38: 2036 | CO38: 2037 | CP38: 2038 | CQ38: 2039 | CR38: 2040 | CS38: 2041 | CT38: 2042 | CU38: 2043 | CV38: 2044 | CW38: 2045 | CX38: 2046 | CY38: 2047 | CZ38: 2048 | DA38: 2049 | DB38: 2050 | DC38: 2051 | DD38: 2052 | DE38: 2053
A39: Total Annual Opex: | C39: =SUM(C29:C38) -> 0 | D39: =SUM(D29:D38) -> 0 | E39: 0 | F39: 0 | G39: 0 | H39: 0 | I39: 0 | J39: 0 | K39: 0 | L39: 0 | M39: 0 | N39: 0 | O39: 0 | P39: 0 | Q39: 0 | R39: 0 | S39: 0 | T39: 0 | U39: 0 | V39: 0 | W39: 0 | X39: 0 | Y39: 0 | Z39: 0 | AA39: 0 | AB39: 0 | AC39: 0 | AD39: 0 | AE39: 0 | AF39: 0 | AG39: 0 | BZ39: =CA39+NPV(DiscountRate,CB39:DE39) -> 0 | CA39: =IF(C39="",0,C39) -> 0 | CB39: 0 | CC39: 0 | CD39: 0 | CE39: 0 | CF39: 0 | CG39: 0 | CH39: 0 | CI39: 0 | CJ39: 0 | CK39: 0 | CL39: 0 | CM39: 0 | CN39: 0 | CO39: 0 | CP39: 0 | CQ39: =IF(S39="",0,S39) -> 0 | CR39: 0 | CS39: 0 | CT39: 0 | CU39: 0 | CV39: 0 | CW39: 0 | CX39: 0 | CY39: 0 | CZ39: 0 | DA39: 0 | DB39: 0 | DC39: 0 | DD39: 0 | DE39: 0
A40: Total Annual Opex with Inflation: | C40: =ROUNDUP(C39*POWER((1+C$10), (C$13-$C$13)),0) -> 0 | D40: =ROUNDUP(D39*POWER((1+D$10), (D$13-$C$13)),0) -> 0 | E40: =ROUNDUP(E39*POWER((1+E$10), (E$13-$C$13)),0) -> 0 | F40: 0 | G40: 0 | H40: 0 | I40: 0 | J40: 0 | K40: 0 | L40: 0 | M40: 0 | N40: 0 | O40: 0 | P40: 0 | Q40: 0 | R40: 0 | S40: 0 | T40: 0 | U40: 0 | V40: 0 | W40: 0 | X40: 0 | Y40: 0 | Z40: 0 | AA40: 0 | AB40: 0 | AC40: 0 | AD40: 0 | AE40: 0 | AF40: 0 | AG40: 0 | BZ40: =CA40+NPV(DiscountRate,CB40:DE40) -> 0 | CA40: 0 | CB40: 0 | CC40: 0 | CD40: 0 | CE40: 0 | CF40: 0 | CG40: 0 | CH40: 0 | CI40: 0 | CJ40: 0 | CK40: 0 | CL40: 0 | CM40: 0 | CN40: 0 | CO40: 0 | CP40: 0 | CQ40: 0 | CR40: 0 | CS40: 0 | CT40: 0 | CU40: 0 | CV40: 0 | CW40: 0 | CX40: 0 | CY40: 0 | CZ40: 0 | DA40: 0 | DB40: 0 | DC40: 0 | DD40: 0 | DE40: 0
A42: TOTAL LIFECYCLE CAPITAL COST | C42: =SUM(C26:AG26) -> 0
A43: TOTAL LIFECYCLE OPERATING COST | C43: =SUM(C40:AG40) -> 0
A44: TOTAL LIFECYCLE COST | C44: =C42+C43 -> 0

Sheet NPV Option 3
A1: City of Winnipeg
A2: Business Case Development | D2: LIFECYCLE COST SUMMARY NET PRESENT VALUE (NPV)
A3: Lifecycle Cost and NPV Calculation | D3: NPV Total Capital Cost | G3: =BZ26 -> 0
D4: NPV Total Operating Cost | G4: =BZ40 -> 0
A5: Project: | D5: TOTAL NET PRESENT VALUE COST | G5: =BZ26+BZ40 -> 0
A6: ='Project Options Analysis '!C6 -> 0
A7: ="Option 3: "&'Project Options Analysis '!C24 -> Option 3:
B9: Cost Escalatation/Construction Inflation | C9: 0 | D9: ='Project Options Analysis '!$C$12 -> 0.03 | E9: ='Project Options Analysis '!$C$12 -> 0.03 | F9: ='Project Options Analysis '!$C$12 -> 0.03 | G9: ='Project Options Analysis '!$C$12 -> 0.03 | H9: ='Project Options Analysis '!$C$12 -> 0.03 | I9: ='Project Options Analysis '!$C$12 -> 0.03 | J9: ='Project Options Analysis '!$C$12 -> 0.03 | K9: ='Project Options Analysis '!$C$12 -> 0.03 | L9: ='Project Options Analysis '!$C$12 -> 0.03 | M9: ='Project Options Analysis '!$C$12 -> 0.03 | N9: ='Project Options Analysis '!$C$12 -> 0.03 | O9: ='Project Options Analysis '!$C$12 -> 0.03 | P9: ='Project Options Analysis '!$C$12 -> 0.03 | Q9: ='Project Options Analysis '!$C$12 -> 0.03 | R9: ='Project Options Analysis '!$C$12 -> 0.03 | S9: ='Project Options Analysis '!$C$12 -> 0.03 | T9: ='Project Options Analysis '!$C$12 -> 0.03 | U9: ='Project Options Analysis '!$C$12 -> 0.03 | V9: ='Project Options Analysis '!$C$12 -> 0.03 | W9: ='Project Options Analysis '!$C$12 -> 0.03 | X9: ='Project Options Analysis '!$C$12 -> 0.03 | Y9: ='Project Options Analysis '!$C$12 -> 0.03 | Z9: ='Project Options Analysis '!$C$12 -> 0.03 | AA9: ='Project Options Analysis '!$C$12 -> 0.03 | AB9: ='Project Options Analysis '!$C$12 -> 0.03 | AC9: ='Project Options Analysis '!$C$12 -> 0.03 | AD9: ='Project Options Analysis '!$C$12 -> 0.03 | AE9: ='Project Options Analysis '!$C$12 -> 0.03 | AF9: ='Project Options Analysis '!$C$12 -> 0.03 | AG9: ='Project Options Analysis '!$C$12 -> 0.03
B10: Cost Escalation/Operating Inflation | C10: 0 | D10: ='Project Options Analysis '!$C$13 -> 0.02 | E10: ='Project Options Analysis '!$C$13 -> 0.02 | F10: ='Project Options Analysis '!$C$13 -> 0.02 | G10: ='Project Options Analysis '!$C$13 -> 0.02 | H10: ='Project Options Analysis '!$C$13 -> 0.02 | I10: ='Project Options Analysis '!$C$13 -> 0.02 | J10: ='Project Options Analysis '!$C$13 -> 0.02 | K10: ='Project Options Analysis '!$C$13 -> 0.02 | L10: ='Project Options Analysis '!$C$13 -> 0.02 | M10: ='Project Options Analysis '!$C$13 -> 0.02 | N10: ='Project Options Analysis '!$C$13 -> 0.02 | O10: ='Project Options Analysis '!$C$13 -> 0.02 | P10: ='Project Options Analysis '!$C$13 -> 0.02 | Q10: ='Project Options Analysis '!$C$13 -> 0.02 | R10: ='Project Options Analysis '!$C$13 -> 0.02 | S10: ='Project Options Analysis '!$C$13 -> 0.02 | T10: ='Project Options Analysis '!$C$13 -> 0.02 | U10: ='Project Options Analysis '!$C$13 -> 0.02 | V10: ='Project Options Analysis '!$C$13 -> 0.02 | W10: ='Project Options Analysis '!$C$13 -> 0.02 | X10: ='Project Options Analysis '!$C$13 -> 0.02 | Y10: ='Project Options Analysis '!$C$13 -> 0.02 | Z10: ='Project Options Analysis '!$C$13 -> 0.02 | AA10: ='Project Options Analysis '!$C$13 -> 0.02 | AB10: ='Project Options Analysis '!$C$13 -> 0.02 | AC10: ='Project Options Analysis '!$C$13 -> 0.02 | AD10: ='Project Options Analysis '!$C$13 -> 0.02 | AE10: ='Project Options Analysis '!$C$13 -> 0.02 | AF10: ='Project Options Analysis '!$C$13 -> 0.02 | AG10: ='Project Options Analysis '!$C$13 -> 0.02
A12: Cost Components | C12: Detail by Year ($k)
A13: Type | B13: Description | C13: =EstimateYear -> 2023 | D13: =C13+1 -> 2024 | E13: =D13+1 -> 2025 | F13: 2026 | G13: 2027 | H13: 2028 | I13: 2029 | J13: 2030 | K13: 2031 | L13: 2032 | M13: 2033 | N13: 2034 | O13: 2035 | P13: 2036 | Q13: 2037 | R13: 2038 | S13: 2039 | T13: 2040 | U13: 2041 | V13: 2042 | W13: 2043 | X13: 2044 | Y13: 2045 | Z13: 2046 | AA13: 2047 | AB13: 2048 | AC13: 2049 | AD13: 2050 | AE13: 2051 | AF13: 2052 | AG13: 2053
A14: Capital | C14: Enter cash flow in current dollars ($K). Inflation will be automatically calculated.
BZ24: Total NPV | CA24: =EstimateYear -> 2023 | CB24: =CA24+1 -> 2024 | CC24: 2025 | CD24: 2026 | CE24: 2027 | CF24: 2028 | CG24: 2029 | CH24: 2030 | CI24: 2031 | CJ24: 2032 | CK24: 2033 | CL24: 2034 | CM24: 2035 | CN24: 2036 | CO24: 2037 | CP24: 2038 | CQ24: 2039 | CR24: 2040 | CS24: 2041 | CT24: 2042 | CU24: 2043 | CV24: 2044 | CW24: 2045 | CX24: 2046 | CY24: 2047 | CZ24: 2048 | DA24: 2049 | DB24: 2050 | DC24: 2051 | DD24: 2052 | DE24: 2053
A25: Total Annual Capex: | C25: =SUM(C15:C24) -> 0 | D25: =SUM(D15:D24) -> 0 | E25: 0 | F25: 0 | G25: 0 | H25: 0 | I25: 0 | J25: 0 | K25: 0 | L25: 0 | M25: 0 | N25: 0 | O25: 0 | P25: 0 | Q25: 0 | R25: 0 | S25: 0 | T25: 0 | U25: 0 | V25: 0 | W25: 0 | X25: 0 | Y25: 0 | Z25: 0 | AA25: 0 | AB25: 0 | AC25: 0 | AD25: 0 | AE25: 0 | AF25: 0 | AG25: 0 | BZ25: =CA25+NPV(DiscountRate,CB25:DE25) -> 0 | CA25: =IF(C25="",0,C25) -> 0 | CB25: 0 | CC25: 0 | CD25: 0 | CE25: 0 | CF25: 0 | CG25: 0 | CH25: 0 | CI25: 0 | CJ25: 0 | CK25: 0 | CL25: 0 | CM25: 0 | CN25: 0 | CO25: 0 | CP25: 0 | CQ25: =IF(S25="",0,S25) -> 0 | CR25: 0 | CS25: 0 | CT25: 0 | CU25: 0 | CV25: 0 | CW25: 0 | CX25: 0 | CY25: 0 | CZ25: 0 | DA25: 0 | DB25: 0 | DC25: 0 | DD25: 0 | DE25: 0
A26: Total Annual Capex with Inflation | C26: =ROUNDUP(C25*POWER((1+C$9),(C$13-$C$13)),0) -> 0 | D26: =ROUNDUP(D25*POWER((1+D$9),(D$13-$C$13)),0) -> 0 | E26: =ROUNDUP(E25*POWER((1+E$9),(E$13-$C$13)),0) -> 0 | F26: 0 | G26: 0 | H26: 0 | I26: 0 | J26: 0 | K26: 0 | L26: 0 | M26: 0 | N26: 0 | O26: 0 | P26: 0 | Q26: 0 | R26: 0 | S26: 0 | T26: 0 | U26: 0 | V26: 0 | W26: 0 | X26: 0 | Y26: 0 | Z26: 0 | AA26: 0 | AB26: 0 | AC26: 0 | AD26: 0 | AE26: 0 | AF26: 0 | AG26: 0 | BZ26: =CA26+NPV(DiscountRate,CB26:DE26) -> 0 | CA26: 0 | CB26: 0 | CC26: 0 | CD26: 0 | CE26: 0 | CF26: 0 | CG26: 0 | CH26: 0 | CI26: 0 | CJ26: 0 | CK26: 0 | CL26: 0 | CM26: 0 | CN26: 0 | CO26: 0 | CP26: 0 | CQ26: 0 | CR26: 0 | CS26: 0 | CT26: 0 | CU26: 0 | CV26: 0 | CW26: 0 | CX26: 0 | CY26: 0 | CZ26: 0 | DA26: 0 | DB26: 0 | DC26: 0 | DD26: 0 | DE26: 0
A28: Operating | C28: Enter cash flow in current dollars ($K). Inflation will be automatically calculated.
BZ38: Total NPV | CA38: =EstimateYear -> 2023 | CB38: =CA38+1 -> 2024 | CC38: 2025 | CD38: 2026 | CE38: 2027 | CF38: 2028 | CG38: 2029 | CH38: 2030 | CI38: 2031 | CJ38: 2032 | CK38: 2033 | CL38: 2034 | CM38: 2035 | CN38: 2036 | CO38: 2037 | CP38: 2038 | CQ38: 2039 | CR38: 2040 | CS38: 2041 | CT38: 2042 | CU38: 2043 | CV38: 2044 | CW38: 2045 | CX38: 2046 | CY38: 2047 | CZ38: 2048 | DA38: 2049 | DB38: 2050 | DC38: 2051 | DD38: 2052 | DE38: 2053
A39: Total Annual Opex: | C39: =SUM(C29:C38) -> 0 | D39: =SUM(D29:D38) -> 0 | E39: 0 | F39: 0 | G39: 0 | H39: 0 | I39: 0 | J39: 0 | K39: 0 | L39: 0 | M39: 0 | N39: 0 | O39: 0 | P39: 0 | Q39: 0 | R39: 0 | S39: 0 | T39: 0 | U39: 0 | V39: 0 | W39: 0 | X39: 0 | Y39: 0 | Z39: 0 | AA39: 0 | AB39: 0 | AC39: 0 | AD39: 0 | AE39: 0 | AF39: 0 | AG39: 0 | BZ39: =CA39+NPV(DiscountRate,CB39:DE39) -> 0 | CA39: =IF(C39="",0,C39) -> 0 | CB39: 0 | CC39: 0 | CD39: 0 | CE39: 0 | CF39: 0 | CG39: 0 | CH39: 0 | CI39: 0 | CJ39: 0 | CK39: 0 | CL39: 0 | CM39: 0 | CN39: 0 | CO39: 0 | CP39: 0 | CQ39: =IF(S39="",0,S39) -> 0 | CR39: 0 | CS39: 0 | CT39: 0 | CU39: 0 | CV39: 0 | CW39: 0 | CX39: 0 | CY39: 0 | CZ39: 0 | DA39: 0 | DB39: 0 | DC39: 0 | DD39: 0 | DE39: 0
A40: Total Annual Opex with Inflation: | C40: =ROUNDUP(C39*POWER((1+C$10), (C$13-$C$13)),0) -> 0 | D40: =ROUNDUP(D39*POWER((1+D$10), (D$13-$C$13)),0) -> 0 | E40: =ROUNDUP(E39*POWER((1+E$10), (E$13-$C$13)),0) -> 0 | F40: 0 | G40: 0 | H40: 0 | I40: 0 | J40: 0 | K40: 0 | L40: 0 | M40: 0 | N40: 0 | O40: 0 | P40: 0 | Q40: 0 | R40: 0 | S40: 0 | T40: 0 | U40: 0 | V40: 0 | W40: 0 | X40: 0 | Y40: 0 | Z40: 0 | AA40: 0 | AB40: 0 | AC40: 0 | AD40: 0 | AE40: 0 | AF40: 0 | AG40: 0 | BZ40: =CA40+NPV(DiscountRate,CB40:DE40) -> 0 | CA40: 0 | CB40: 0 | CC40: 0 | CD40: 0 | CE40: 0 | CF40: 0 | CG40: 0 | CH40: 0 | CI40: 0 | CJ40: 0 | CK40: 0 | CL40: 0 | CM40: 0 | CN40: 0 | CO40: 0 | CP40: 0 | CQ40: 0 | CR40: 0 | CS40: 0 | CT40: 0 | CU40: 0 | CV40: 0 | CW40: 0 | CX40: 0 | CY40: 0 | CZ40: 0 | DA40: 0 | DB40: 0 | DC40: 0 | DD40: 0 | DE40: 0
A42: TOTAL LIFECYCLE CAPITAL COST | C42: =SUM(C26:AG26) -> 0
A43: TOTAL LIFECYCLE OPERATING COST | C43: =SUM(C40:AG40) -> 0
A44: TOTAL LIFECYCLE COST | C44: =C42+C43 -> 0

Sheet NPV Option 4
A1: City of Winnipeg
A2: Business Case Development | D2: LIFECYCLE COST SUMMARY NET PRESENT VALUE (NPV)
A3: Lifecycle Cost and NPV Calculation | D3: NPV Total Capital Cost | G3: =BZ26 -> 0
D4: NPV Total Operating Cost | G4: =BZ40 -> 0
A5: Project: | D5: TOTAL NET PRESENT VALUE COST | G5: =BZ26+BZ40 -> 0
A6: ='Project Options Analysis '!C6 -> 0
A7: ="Option 4: "&'Project Options Analysis '!C25 -> Option 4:
B9: Cost Escalatation/Construction Inflation | C9: 0 | D9: ='Project Options Analysis '!$C$12 -> 0.03 | E9: 0.03 | F9: 0.03 | G9: 0.03 | H9: 0.03 | I9: 0.03 | J9: 0.03 | K9: 0.03 | L9: 0.03 | M9: 0.03 | N9: 0.03 | O9: 0.03 | P9: 0.03 | Q9: 0.03 | R9: 0.03 | S9: 0.03 | T9: 0.03 | U9: 0.03 | V9: 0.03 | W9: 0.03 | X9: 0.03 | Y9: 0.03 | Z9: 0.03 | AA9: 0.03 | AB9: 0.03 | AC9: 0.03 | AD9: 0.03 | AE9: 0.03 | AF9: 0.03 | AG9: 0.03
B10: Cost Escalation/Operating Inflation | C10: 0 | D10: ='Project Options Analysis '!$C$13 -> 0.02 | E10: ='Project Options Analysis '!$C$13 -> 0.02 | F10: ='Project Options Analysis '!$C$13 -> 0.02 | G10: ='Project Options Analysis '!$C$13 -> 0.02 | H10: ='Project Options Analysis '!$C$13 -> 0.02 | I10: ='Project Options Analysis '!$C$13 -> 0.02 | J10: ='Project Options Analysis '!$C$13 -> 0.02 | K10: ='Project Options Analysis '!$C$13 -> 0.02 | L10: ='Project Options Analysis '!$C$13 -> 0.02 | M10: ='Project Options Analysis '!$C$13 -> 0.02 | N10: ='Project Options Analysis '!$C$13 -> 0.02 | O10: ='Project Options Analysis '!$C$13 -> 0.02 | P10: ='Project Options Analysis '!$C$13 -> 0.02 | Q10: ='Project Options Analysis '!$C$13 -> 0.02 | R10: ='Project Options Analysis '!$C$13 -> 0.02 | S10: ='Project Options Analysis '!$C$13 -> 0.02 | T10: ='Project Options Analysis '!$C$13 -> 0.02 | U10: ='Project Options Analysis '!$C$13 -> 0.02 | V10: ='Project Options Analysis '!$C$13 -> 0.02 | W10: ='Project Options Analysis '!$C$13 -> 0.02 | X10: ='Project Options Analysis '!$C$13 -> 0.02 | Y10: ='Project Options Analysis '!$C$13 -> 0.02 | Z10: ='Project Options Analysis '!$C$13 -> 0.02 | AA10: ='Project Options Analysis '!$C$13 -> 0.02 | AB10: ='Project Options Analysis '!$C$13 -> 0.02 | AC10: ='Project Options Analysis '!$C$13 -> 0.02 | AD10: ='Project Options Analysis '!$C$13 -> 0.02 | AE10: ='Project Options Analysis '!$C$13 -> 0.02 | AF10: ='Project Options Analysis '!$C$13 -> 0.02 | AG10: ='Project Options Analysis '!$C$13 -> 0.02
A12: Cost Components | C12: Detail by Year ($k)
A13: Type | B13: Description | C13: =EstimateYear -> 2023 | D13: =C13+1 -> 2024 | E13: =D13+1 -> 2025 | F13: 2026 | G13: 2027 | H13: 2028 | I13: 2029 | J13: 2030 | K13: 2031 | L13: 2032 | M13: 2033 | N13: 2034 | O13: 2035 | P13: 2036 | Q13: 2037 | R13: 2038 | S13: 2039 | T13: 2040 | U13: 2041 | V13: 2042 | W13: 2043 | X13: 2044 | Y13: 2045 | Z13: 2046 | AA13: 2047 | AB13: 2048 | AC13: 2049 | AD13: 2050 | AE13: 2051 | AF13: 2052 | AG13: 2053
A14: Capital | C14: Enter cash flow in current dollars ($K). Inflation will be automatically calculated.
BZ24: Total NPV | CA24: =EstimateYear -> 2023 | CB24: =CA24+1 -> 2024 | CC24: 2025 | CD24: 2026 | CE24: 2027 | CF24: 2028 | CG24: 2029 | CH24: 2030 | CI24: 2031 | CJ24: 2032 | CK24: 2033 | CL24: 2034 | CM24: 2035 | CN24: 2036 | CO24: 2037 | CP24: 2038 | CQ24: 2039 | CR24: 2040 | CS24: 2041 | CT24: 2042 | CU24: 2043 | CV24: 2044 | CW24: 2045 | CX24: 2046 | CY24: 2047 | CZ24: 2048 | DA24: 2049 | DB24: 2050 | DC24: 2051 | DD24: 2052 | DE24: 2053
A25: Total Annual Capex: | C25: =SUM(C15:C24) -> 0 | D25: =SUM(D15:D24) -> 0 | E25: 0 | F25: 0 | G25: 0 | H25: 0 | I25: 0 | J25: 0 | K25: 0 | L25: 0 | M25: 0 | N25: 0 | O25: 0 | P25: 0 | Q25: 0 | R25: 0 | S25: 0 | T25: 0 | U25: 0 | V25: 0 | W25: 0 | X25: 0 | Y25: 0 | Z25: 0 | AA25: 0 | AB25: 0 | AC25: 0 | AD25: 0 | AE25: 0 | AF25: 0 | AG25: 0 | BZ25: =CA25+NPV(DiscountRate,CB25:DE25) -> 0 | CA25: =IF(C25="",0,C25) -> 0 | CB25: 0 | CC25: 0 | CD25: 0 | CE25: 0 | CF25: 0 | CG25: 0 | CH25: 0 | CI25: 0 | CJ25: 0 | CK25: 0 | CL25: 0 | CM25: 0 | CN25: 0 | CO25: 0 | CP25: 0 | CQ25: =IF(S25="",0,S25) -> 0 | CR25: 0 | CS25: 0 | CT25: 0 | CU25: 0 | CV25: 0 | CW25: 0 | CX25: 0 | CY25: 0 | CZ25: 0 | DA25: 0 | DB25: 0 | DC25: 0 | DD25: 0 | DE25: 0
A26: Total Annual Capex with Inflation | C26: =ROUNDUP(C25*POWER((1+C$9),(C$13-$C$13)),0) -> 0 | D26: =ROUNDUP(D25*POWER((1+D$9),(D$13-$C$13)),0) -> 0 | E26: =ROUNDUP(E25*POWER((1+E$9),(E$13-$C$13)),0) -> 0 | F26: 0 | G26: 0 | H26: 0 | I26: 0 | J26: 0 | K26: 0 | L26: 0 | M26: 0 | N26: 0 | O26: 0 | P26: 0 | Q26: 0 | R26: 0 | S26: 0 | T26: 0 | U26: 0 | V26: 0 | W26: 0 | X26: 0 | Y26: 0 | Z26: 0 | AA26: 0 | AB26: 0 | AC26: 0 | AD26: 0 | AE26: 0 | AF26: 0 | AG26: 0 | BZ26: =CA26+NPV(DiscountRate,CB26:DE26) -> 0 | CA26: 0 | CB26: 0 | CC26: 0 | CD26: 0 | CE26: 0 | CF26: 0 | CG26: 0 | CH26: 0 | CI26: 0 | CJ26: 0 | CK26: 0 | CL26: 0 | CM26: 0 | CN26: 0 | CO26: 0 | CP26: 0 | CQ26: 0 | CR26: 0 | CS26: 0 | CT26: 0 | CU26: 0 | CV26: 0 | CW26: 0 | CX26: 0 | CY26: 0 | CZ26: 0 | DA26: 0 | DB26: 0 | DC26: 0 | DD26: 0 | DE26: 0
A28: Operating | C28: Enter cash flow in current dollars ($K). Inflation will be automatically calculated.
BZ38: Total NPV | CA38: =EstimateYear -> 2023 | CB38: =CA38+1 -> 2024 | CC38: 2025 | CD38: 2026 | CE38: 2027 | CF38: 2028 | CG38: 2029 | CH38: 2030 | CI38: 2031 | CJ38: 2032 | CK38: 2033 | CL38: 2034 | CM38: 2035 | CN38: 2036 | CO38: 2037 | CP38: 2038 | CQ38: 2039 | CR38: 2040 | CS38: 2041 | CT38: 2042 | CU38: 2043 | CV38: 2044 | CW38: 2045 | CX38: 2046 | CY38: 2047 | CZ38: 2048 | DA38: 2049 | DB38: 2050 | DC38: 2051 | DD38: 2052 | DE38: 2053
A39: Total Annual Opex: | C39: =SUM(C29:C38) -> 0 | D39: =SUM(D29:D38) -> 0 | E39: 0 | F39: 0 | G39: 0 | H39: 0 | I39: 0 | J39: 0 | K39: 0 | L39: 0 | M39: 0 | N39: 0 | O39: 0 | P39: 0 | Q39: 0 | R39: 0 | S39: 0 | T39: 0 | U39: 0 | V39: 0 | W39: 0 | X39: 0 | Y39: 0 | Z39: 0 | AA39: 0 | AB39: 0 | AC39: 0 | AD39: 0 | AE39: 0 | AF39: 0 | AG39: 0 | BZ39: =CA39+NPV(DiscountRate,CB39:DE39) -> 0 | CA39: =IF(C39="",0,C39) -> 0 | CB39: 0 | CC39: 0 | CD39: 0 | CE39: 0 | CF39: 0 | CG39: 0 | CH39: 0 | CI39: 0 | CJ39: 0 | CK39: 0 | CL39: 0 | CM39: 0 | CN39: 0 | CO39: 0 | CP39: 0 | CQ39: =IF(S39="",0,S39) -> 0 | CR39: 0 | CS39: 0 | CT39: 0 | CU39: 0 | CV39: 0 | CW39: 0 | CX39: 0 | CY39: 0 | CZ39: 0 | DA39: 0 | DB39: 0 | DC39: 0 | DD39: 0 | DE39: 0
A40: Total Annual Opex with Inflation: | C40: =ROUNDUP(C39*POWER((1+C$10), (C$13-$C$13)),0) -> 0 | D40: =ROUNDUP(D39*POWER((1+D$10), (D$13-$C$13)),0) -> 0 | E40: =ROUNDUP(E39*POWER((1+E$10), (E$13-$C$13)),0) -> 0 | F40: 0 | G40: 0 | H40: 0 | I40: 0 | J40: 0 | K40: 0 | L40: 0 | M40: 0 | N40: 0 | O40: 0 | P40: 0 | Q40: 0 | R40: 0 | S40: 0 | T40: 0 | U40: 0 | V40: 0 | W40: 0 | X40: 0 | Y40: 0 | Z40: 0 | AA40: 0 | AB40: 0 | AC40: 0 | AD40: 0 | AE40: 0 | AF40: 0 | AG40: 0 | BZ40: =CA40+NPV(DiscountRate,CB40:DE40) -> 0 | CA40: 0 | CB40: 0 | CC40: 0 | CD40: 0 | CE40: 0 | CF40: 0 | CG40: 0 | CH40: 0 | CI40: 0 | CJ40: 0 | CK40: 0 | CL40: 0 | CM40: 0 | CN40: 0 | CO40: 0 | CP40: 0 | CQ40: 0 | CR40: 0 | CS40: 0 | CT40: 0 | CU40: 0 | CV40: 0 | CW40: 0 | CX40: 0 | CY40: 0 | CZ40: 0 | DA40: 0 | DB40: 0 | DC40: 0 | DD40: 0 | DE40: 0
A42: TOTAL LIFECYCLE CAPITAL COST | C42: =SUM(C26:AG26) -> 0
A43: TOTAL LIFECYCLE OPERATING COST | C43: =SUM(C40:AG40) -> 0
A44: TOTAL LIFECYCLE COST | C44: =C42+C43 -> 0

Sheet Benefits
A1: City of Winnipeg
A2: Business Case Development
A3: Options Benefit Evaluation
A5: Project:
A6: ='Project Options Analysis '!C6 -> 0
F7: BENEFIT EVALUATION
A8: Investment Details | F8: Multiplier | H8: Level of Service - Benefit Analysis | N8: Strategic Alignment - Benefit Analysis | R8: Multiplier | S8: Benefits Score Summary | AA8: Rank
A9: Options | B9: Department | C9: Service | D9: Investment Type | E9: Option Total NPV ($k) | F9: Service Impact of Project | G9: User-hrs (per year) | H9: Compliance with New Legislation | I9: Maintain Level of Service | L9: Enhance Level of Service | N9: Environmental Sustainability | O9: Enables Growth | P9: Operational Efficiency/Revenue Generation | Q9: Culture/ Heritage | R9: Service Usage | S9: New Regulation | T9: Maintain LOS | U9: Enhance LOS | V9: Environment | W9: Enables Growth | X9: Operational Efficiency | Y9: Cultural/ Heritage | Z9: Total Benefit Score | AA9: Benefit Rank | AB9: Cost/ Benefit Points Ratio | AC9: Cost/ Benefit Rank
AO11: LOS Benefits | AW11: Strategic Alignment | BE11: Total Benefit Score (Usage & Importance) | BF11: Total Benefit Score (Service Impact) | BG11: Multiplier
AO12: Compliance with New Legislation | AQ12: Maintain Level of Service | AU12: Enhance Level of Service | AW12: Environmental Sustainability | AY12: Enables Growth | BA12: Operational Efficiency/Revenue Generation | BC12: Culture/Heritage | BG12: Service Usage | BH12: Service Importance | BI12: Service Impact
I14: Category | J14: From | K14: To | L14: Category | M14: Score | AO14: Score | AP14: Weighted Score | AQ14: From | AR14: To | AS14: Total Score | AT14: Weighted Score | AU14: Score | AV14: Weighted Score | AW14: Score | AX14: Weighted Score | AY14: Score | AZ14: Weighted Score | BA14: Score | BB14: Weighted Score | BC14: Score | BD14: Weighted Score
AB15: =IFERROR(IF(#REF!=#REF!,#REF!/Z15,IF(#REF!=#REF!,(#REF!/#REF!)/Z15,"")),"") ->  | AC15: =IFERROR(RANK(AB15,$AB$16:$AB$19,1),"") -> 
A16: ="Option 1: "&'Project Options Analysis '!C22 -> Option 1: | E16: ='Project Options Analysis '!G22 ->  | R16: =G16/158475797 -> 0 | S16: =AP16 -> 0 | T16: =AT16 -> 0 | U16: =AV16 -> 0 | V16: =AX16 -> 0 | W16: =AZ16 -> 0 | X16: =BB16 -> 0 | Y16: =BD16 -> 0 | Z16: =BF16 -> 0 | AA16: =IFERROR(RANK(Z16,$Z$16:$Z$19,0),"") -> 1 | AB16: =IFERROR(IF(D16="Project",E16/Z16,IF(D16="Program",E16/Z16,"")),"") ->  | AC16: =IFERROR(RANK(AB16,$AB$16:$AB$19,1),"") ->  | AO16: =IFERROR(VLOOKUP(H16,'Conversion Tables'!$G$8:$N$12,3,FALSE)/'Conversion Tables'!$I$12*Max_Point,0) -> 0 | AP16: =AO16*'Weighting Scale'!$H$10*BG16*BH16 -> 0 | AQ16: =IFERROR(VLOOKUP(J16,'Conversion Tables'!$B$8:$C$32,2,FALSE),0) -> 0 | AR16: =IFERROR(VLOOKUP(K16,'Conversion Tables'!$B$8:$C$32,2,FALSE),0) -> 0 | AS16: =(AQ16-AR16)/'Conversion Tables'!$C$32*Max_Point -> 0 | AT16: =AS16*'Weighting Scale'!$H$11*BG16*BH16 -> 0 | AU16: =IFERROR(VLOOKUP(M16,'Conversion Tables'!$G$8:$N$12,2,FALSE)/'Conversion Tables'!$H$12*Max_Point,0) -> 0 | AV16: =AU16*'Weighting Scale'!$H$12*BG16*BH16 -> 0 | AW16: =IFERROR(VLOOKUP(N16,'Conversion Tables'!$G$8:$N$12,6,FALSE)/'Conversion Tables'!$L$12*Max_Point,0) -> 0 | AX16: =AW16*'Weighting Scale'!$H$15*BG16*BH16 -> 0 | AY16: =IFERROR(VLOOKUP(O16,'Conversion Tables'!$G$8:$N$12,4,FALSE)/'Conversion Tables'!$J$12*Max_Point,0) -> 0 | AZ16: =AY16*'Weighting Scale'!$H$13*BG16*BH16 -> 0 | BA16: =IFERROR(VLOOKUP(P16,'Conversion Tables'!$G$8:$N$12,7,FALSE)/'Conversion Tables'!$M$12*Max_Point,0) -> 0 | BB16: =BA16*'Weighting Scale'!$H$16*BG16*BH16 -> 0 | BC16: =IF(Q16="Yes",('Conversion Tables'!$N$12)/'Conversion Tables'!$N$12*Max_Point,0) -> 0 | BD16: =BC16*'Weighting Scale'!$H$17*BG16*BH16 -> 0 | BE16: =AP16+AT16+AV16+AX16+AZ16+BB16+BD16 -> 0 | BF16: =BE16*BI16 -> 0 | BG16: =R16 -> 0 | BH16: =IF(C16=Dropdowns!$C$7,Dropdowns!$B$7,IF(C16=Dropdowns!$C$8,Dropdowns!$B$8,IF(C16=Dropdowns!$C$9,Dropdowns!$B$9,IF(C16=Dropdowns!$C$10,Dropdowns!$B$10,IF(C16=Dropdowns!$C$11,Dropdowns!$B$11,IF(C16=Dropdowns!$C$12,Dropdowns!$B$12,IF(C16=Dropdowns!$C$13,Dropdowns!$B$13,IF(C16=Dropdowns!$C$14,Dropdowns!$B$14,IF(C16=Dropdowns!$C$15,Dropdowns!$B$15,IF(C16=Dropdowns!$C$16,Dropdowns!$B$16,IF(C16=Dropdowns!$C$17,Dropdowns!$B$17,IF(C16=Dropdowns!$C$18,Dropdowns!$B$18,IF(C16=Dropdowns!$C$19,Dropdowns!$B$19,IF(C16=Dropdowns!$C$20,Dropdowns!$B$20,IF(C16=Dropdowns!$C$21,Dropdowns!$B$21,IF(C16=Dropdowns!$C$22,Dropdowns!$B$22,IF(C16=Dropdowns!$C$23,Dropdowns!$B$23,IF(C16=Dropdowns!$C$24,Dropdowns!$B$24,IF(C16=Dropdowns!$C$25,Dropdowns!$B$25,IF(C16=Dropdowns!$C$26,Dropdowns!$B$26,IF(C16=Dropdowns!$C$27,Dropdowns!$B$27,IF(C16=Dropdowns!$C$28,Dropdowns!$B$28,IF(C16=Dropdowns!$C$29,Dropdowns!$B$29,IF(C16=Dropdowns!$C$30,Dropdowns!$B$30,IF(C16=Dropdowns!$C$31,Dropdowns!$B$31,IF(C16=Dropdowns!$C$32,Dropdowns!$B$32,IF(C16=Dropdowns!$C$33,Dropdowns!$B$33,IF(C16=Dropdowns!$C$34,Dropdowns!$B$34,IF(C16=Dropdowns!$C$35,Dropdowns!$B$35,IF(C16=Dropdowns!$C$36,Dropdowns!$B$36,IF(C16=Dropdowns!$C$37,Dropdowns!$B$37,IF(C16=Dropdowns!$C$38,Dropdowns!$B$38,IF(C16=Dropdowns!$C$39,Dropdowns!$B$39,IF(C16=Dropdowns!$C$40,Dropdowns!$B$40,IF(C16=Dropdowns!$C$41,Dropdowns!$B$41,IF(C16=Dropdowns!$C$42,Dropdowns!$B$42,IF(C16=Dropdowns!$C$43,Dropdowns!$B$43,IF(C16=Dropdowns!$C$44,Dropdowns!$B$44,IF(C16=Dropdowns!$C$45,Dropdowns!$B$45,IF(C16=Dropdowns!$C$46,Dropdowns!$B$46,"0")))))))))))))))))))))))))))))))))))))))) -> 0 | BI16: =IF(F16=Dropdowns!$F$15,Dropdowns!$G$15,IF(F16=Dropdowns!$F$16,Dropdowns!$G$16,IF(F16=Dropdowns!$F$17,Dropdowns!$G$17,"0"))) -> 0
A17: ="Option 2: "&'Project Options Analysis '!C23 -> Option 2: | E17: ='Project Options Analysis '!G23 ->  | R17: =G17/158475797 -> 0 | S17: =AP17 -> 0 | T17: =AT17 -> 0 | U17: =AV17 -> 0 | V17: =AX17 -> 0 | W17: =AZ17 -> 0 | X17: =BB17 -> 0 | Y17: =BD17 -> 0 | Z17: =BF17 -> 0 | AA17: =IFERROR(RANK(Z17,$Z$16:$Z$19,0),"") -> 1 | AB17: =IFERROR(IF(D17="Project",E17/Z17,IF(D17="Program",E17/Z17,"")),"") ->  | AC17: =IFERROR(RANK(AB17,$AB$16:$AB$19,1),"") ->  | AO17: =IFERROR(VLOOKUP(H17,'Conversion Tables'!$G$8:$N$12,3,FALSE)/'Conversion Tables'!$I$12*Max_Point,0) -> 0 | AP17: =AO17*'Weighting Scale'!$H$10*BG17*BH17 -> 0 | AQ17: =IFERROR(VLOOKUP(J17,'Conversion Tables'!$B$8:$C$32,2,FALSE),0) -> 0 | AR17: =IFERROR(VLOOKUP(K17,'Conversion Tables'!$B$8:$C$32,2,FALSE),0) -> 0 | AS17: =(AQ17-AR17)/'Conversion Tables'!$C$32*Max_Point -> 0 | AT17: =AS17*'Weighting Scale'!$H$11*BG17*BH17 -> 0 | AU17: =IFERROR(VLOOKUP(M17,'Conversion Tables'!$G$8:$N$12,2,FALSE)/'Conversion Tables'!$H$12*Max_Point,0) -> 0 | AV17: =AU17*'Weighting Scale'!$H$12*BG17*BH17 -> 0 | AW17: =IFERROR(VLOOKUP(N17,'Conversion Tables'!$G$8:$N$12,6,FALSE)/'Conversion Tables'!$L$12*Max_Point,0) -> 0 | AX17: =AW17*'Weighting Scale'!$H$15*BG17*BH17 -> 0 | AY17: =IFERROR(VLOOKUP(O17,'Conversion Tables'!$G$8:$N$12,4,FALSE)/'Conversion Tables'!$J$12*Max_Point,0) -> 0 | AZ17: =AY17*'Weighting Scale'!$H$13*BG17*BH17 -> 0 | BA17: =IFERROR(VLOOKUP(P17,'Conversion Tables'!$G$8:$N$12,7,FALSE)/'Conversion Tables'!$M$12*Max_Point,0) -> 0 | BB17: =BA17*'Weighting Scale'!$H$16*BG17*BH17 -> 0 | BC17: =IF(Q17="Yes",('Conversion Tables'!$N$12)/'Conversion Tables'!$N$12*Max_Point,0) -> 0 | BD17: =BC17*'Weighting Scale'!$H$17*BG17*BH17 -> 0 | BE17: =AP17+AT17+AV17+AX17+AZ17+BB17+BD17 -> 0 | BF17: =BE17*BI17 -> 0 | BG17: =R17 -> 0 | BH17: =IF(C17=Dropdowns!$C$7,Dropdowns!$B$7,IF(C17=Dropdowns!$C$8,Dropdowns!$B$8,IF(C17=Dropdowns!$C$9,Dropdowns!$B$9,IF(C17=Dropdowns!$C$10,Dropdowns!$B$10,IF(C17=Dropdowns!$C$11,Dropdowns!$B$11,IF(C17=Dropdowns!$C$12,Dropdowns!$B$12,IF(C17=Dropdowns!$C$13,Dropdowns!$B$13,IF(C17=Dropdowns!$C$14,Dropdowns!$B$14,IF(C17=Dropdowns!$C$15,Dropdowns!$B$15,IF(C17=Dropdowns!$C$16,Dropdowns!$B$16,IF(C17=Dropdowns!$C$17,Dropdowns!$B$17,IF(C17=Dropdowns!$C$18,Dropdowns!$B$18,IF(C17=Dropdowns!$C$19,Dropdowns!$B$19,IF(C17=Dropdowns!$C$20,Dropdowns!$B$20,IF(C17=Dropdowns!$C$21,Dropdowns!$B$21,IF(C17=Dropdowns!$C$22,Dropdowns!$B$22,IF(C17=Dropdowns!$C$23,Dropdowns!$B$23,IF(C17=Dropdowns!$C$24,Dropdowns!$B$24,IF(C17=Dropdowns!$C$25,Dropdowns!$B$25,IF(C17=Dropdowns!$C$26,Dropdowns!$B$26,IF(C17=Dropdowns!$C$27,Dropdowns!$B$27,IF(C17=Dropdowns!$C$28,Dropdowns!$B$28,IF(C17=Dropdowns!$C$29,Dropdowns!$B$29,IF(C17=Dropdowns!$C$30,Dropdowns!$B$30,IF(C17=Dropdowns!$C$31,Dropdowns!$B$31,IF(C17=Dropdowns!$C$32,Dropdowns!$B$32,IF(C17=Dropdowns!$C$33,Dropdowns!$B$33,IF(C17=Dropdowns!$C$34,Dropdowns!$B$34,IF(C17=Dropdowns!$C$35,Dropdowns!$B$35,IF(C17=Dropdowns!$C$36,Dropdowns!$B$36,IF(C17=Dropdowns!$C$37,Dropdowns!$B$37,IF(C17=Dropdowns!$C$38,Dropdowns!$B$38,IF(C17=Dropdowns!$C$39,Dropdowns!$B$39,IF(C17=Dropdowns!$C$40,Dropdowns!$B$40,IF(C17=Dropdowns!$C$41,Dropdowns!$B$41,IF(C17=Dropdowns!$C$42,Dropdowns!$B$42,IF(C17=Dropdowns!$C$43,Dropdowns!$B$43,IF(C17=Dropdowns!$C$44,Dropdowns!$B$44,IF(C17=Dropdowns!$C$45,Dropdowns!$B$45,IF(C17=Dropdowns!$C$46,Dropdowns!$B$46,"0")))))))))))))))))))))))))))))))))))))))) -> 0 | BI17: =IF(F17=Dropdowns!$F$15,Dropdowns!$G$15,IF(F17=Dropdowns!$F$16,Dropdowns!$G$16,IF(F17=Dropdowns!$F$17,Dropdowns!$G$17,"0"))) -> 0
A18: ="Option 3 : "&'Project Options Analysis '!C24 -> Option 3 : | E18: ='Project Options Analysis '!G24 ->  | R18: 0 | S18: =AP18 -> 0 | T18: =AT18 -> 0 | U18: =AV18 -> 0 | V18: =AX18 -> 0 | W18: =AZ18 -> 0 | X18: =BB18 -> 0 | Y18: =BD18 -> 0 | Z18: =BF18 -> 0 | AA18: =IFERROR(RANK(Z18,$Z$16:$Z$19,0),"") -> 1 | AB18: =IFERROR(IF(D18="Project",E18/Z18,IF(D18="Program",E18/Z18,"")),"") ->  | AC18: =IFERROR(RANK(AB18,$AB$16:$AB$19,1),"") ->  | AO18: =IFERROR(VLOOKUP(H18,'Conversion Tables'!$G$8:$N$12,3,FALSE)/'Conversion Tables'!$I$12*Max_Point,0) -> 0 | AP18: =AO18*'Weighting Scale'!$H$10*BG18*BH18 -> 0 | AQ18: =IFERROR(VLOOKUP(J18,'Conversion Tables'!$B$8:$C$32,2,FALSE),0) -> 0 | AR18: =IFERROR(VLOOKUP(K18,'Conversion Tables'!$B$8:$C$32,2,FALSE),0) -> 0 | AS18: =(AQ18-AR18)/'Conversion Tables'!$C$32*Max_Point -> 0 | AT18: =AS18*'Weighting Scale'!$H$11*BG18*BH18 -> 0 | AU18: =IFERROR(VLOOKUP(M18,'Conversion Tables'!$G$8:$N$12,2,FALSE)/'Conversion Tables'!$H$12*Max_Point,0) -> 0 | AV18: =AU18*'Weighting Scale'!$H$12*BG18*BH18 -> 0 | AW18: =IFERROR(VLOOKUP(N18,'Conversion Tables'!$G$8:$N$12,6,FALSE)/'Conversion Tables'!$L$12*Max_Point,0) -> 0 | AX18: =AW18*'Weighting Scale'!$H$15*BG18*BH18 -> 0 | AY18: =IFERROR(VLOOKUP(O18,'Conversion Tables'!$G$8:$N$12,4,FALSE)/'Conversion Tables'!$J$12*Max_Point,0) -> 0 | AZ18: =AY18*'Weighting Scale'!$H$13*BG18*BH18 -> 0 | BA18: =IFERROR(VLOOKUP(P18,'Conversion Tables'!$G$8:$N$12,7,FALSE)/'Conversion Tables'!$M$12*Max_Point,0) -> 0 | BB18: =BA18*'Weighting Scale'!$H$16*BG18*BH18 -> 0 | BC18: =IF(Q18="Yes",('Conversion Tables'!$N$12)/'Conversion Tables'!$N$12*Max_Point,0) -> 0 | BD18: =BC18*'Weighting Scale'!$H$17*BG18*BH18 -> 0 | BE18: 0 | BF18: 0 | BG18: 0 | BH18: =IF(C18=Dropdowns!$C$7,Dropdowns!$B$7,IF(C18=Dropdowns!$C$8,Dropdowns!$B$8,IF(C18=Dropdowns!$C$9,Dropdowns!$B$9,IF(C18=Dropdowns!$C$10,Dropdowns!$B$10,IF(C18=Dropdowns!$C$11,Dropdowns!$B$11,IF(C18=Dropdowns!$C$12,Dropdowns!$B$12,IF(C18=Dropdowns!$C$13,Dropdowns!$B$13,IF(C18=Dropdowns!$C$14,Dropdowns!$B$14,IF(C18=Dropdowns!$C$15,Dropdowns!$B$15,IF(C18=Dropdowns!$C$16,Dropdowns!$B$16,IF(C18=Dropdowns!$C$17,Dropdowns!$B$17,IF(C18=Dropdowns!$C$18,Dropdowns!$B$18,IF(C18=Dropdowns!$C$19,Dropdowns!$B$19,IF(C18=Dropdowns!$C$20,Dropdowns!$B$20,IF(C18=Dropdowns!$C$21,Dropdowns!$B$21,IF(C18=Dropdowns!$C$22,Dropdowns!$B$22,IF(C18=Dropdowns!$C$23,Dropdowns!$B$23,IF(C18=Dropdowns!$C$24,Dropdowns!$B$24,IF(C18=Dropdowns!$C$25,Dropdowns!$B$25,IF(C18=Dropdowns!$C$26,Dropdowns!$B$26,IF(C18=Dropdowns!$C$27,Dropdowns!$B$27,IF(C18=Dropdowns!$C$28,Dropdowns!$B$28,IF(C18=Dropdowns!$C$29,Dropdowns!$B$29,IF(C18=Dropdowns!$C$30,Dropdowns!$B$30,IF(C18=Dropdowns!$C$31,Dropdowns!$B$31,IF(C18=Dropdowns!$C$32,Dropdowns!$B$32,IF(C18=Dropdowns!$C$33,Dropdowns!$B$33,IF(C18=Dropdowns!$C$34,Dropdowns!$B$34,IF(C18=Dropdowns!$C$35,Dropdowns!$B$35,IF(C18=Dropdowns!$C$36,Dropdowns!$B$36,IF(C18=Dropdowns!$C$37,Dropdowns!$B$37,IF(C18=Dropdowns!$C$38,Dropdowns!$B$38,IF(C18=Dropdowns!$C$39,Dropdowns!$B$39,IF(C18=Dropdowns!$C$40,Dropdowns!$B$40,IF(C18=Dropdowns!$C$41,Dropdowns!$B$41,IF(C18=Dropdowns!$C$42,Dropdowns!$B$42,IF(C18=Dropdowns!$C$43,Dropdowns!$B$43,IF(C18=Dropdowns!$C$44,Dropdowns!$B$44,IF(C18=Dropdowns!$C$45,Dropdowns!$B$45,IF(C18=Dropdowns!$C$46,Dropdowns!$B$46,"0")))))))))))))))))))))))))))))))))))))))) -> 0 | BI18: =IF(F18=Dropdowns!$F$15,Dropdowns!$G$15,IF(F18=Dropdowns!$F$16,Dropdowns!$G$16,IF(F18=Dropdowns!$F$17,Dropdowns!$G$17,"0"))) -> 0
A19: ="Option 4: "&'Project Options Analysis '!C25 -> Option 4: | E19: ='Project Options Analysis '!G25 ->  | R19: 0 | S19: =AP19 -> 0 | T19: =AT19 -> 0 | U19: =AV19 -> 0 | V19: =AX19 -> 0 | W19: =AZ19 -> 0 | X19: =BB19 -> 0 | Y19: =BD19 -> 0 | Z19: =BF19 -> 0 | AA19: =IFERROR(RANK(Z19,$Z$16:$Z$19,0),"") -> 1 | AB19: =IFERROR(IF(D19="Project",E19/Z19,IF(D19="Program",E19/Z19,"")),"") ->  | AC19: =IFERROR(RANK(AB19,$AB$16:$AB$19,1),"") ->  | AO19: =IFERROR(VLOOKUP(H19,'Conversion Tables'!$G$8:$N$12,3,FALSE)/'Conversion Tables'!$I$12*Max_Point,0) -> 0 | AP19: =AO19*'Weighting Scale'!$H$10*BG19*BH19 -> 0 | AQ19: =IFERROR(VLOOKUP(J19,'Conversion Tables'!$B$8:$C$32,2,FALSE),0) -> 0 | AR19: =IFERROR(VLOOKUP(K19,'Conversion Tables'!$B$8:$C$32,2,FALSE),0) -> 0 | AS19: =(AQ19-AR19)/'Conversion Tables'!$C$32*Max_Point -> 0 | AT19: =AS19*'Weighting Scale'!$H$11*BG19*BH19 -> 0 | AU19: =IFERROR(VLOOKUP(M19,'Conversion Tables'!$G$8:$N$12,2,FALSE)/'Conversion Tables'!$H$12*Max_Point,0) -> 0 | AV19: =AU19*'Weighting Scale'!$H$12*BG19*BH19 -> 0 | AW19: =IFERROR(VLOOKUP(N19,'Conversion Tables'!$G$8:$N$12,6,FALSE)/'Conversion Tables'!$L$12*Max_Point,0) -> 0 | AX19: =AW19*'Weighting Scale'!$H$15*BG19*BH19 -> 0 | AY19: =IFERROR(VLOOKUP(O19,'Conversion Tables'!$G$8:$N$12,4,FALSE)/'Conversion Tables'!$J$12*Max_Point,0) -> 0 | AZ19: =AY19*'Weighting Scale'!$H$13*BG19*BH19 -> 0 | BA19: =IFERROR(VLOOKUP(P19,'Conversion Tables'!$G$8:$N$12,7,FALSE)/'Conversion Tables'!$M$12*Max_Point,0) -> 0 | BB19: =BA19*'Weighting Scale'!$H$16*BG19*BH19 -> 0 | BC19: =IF(Q19="Yes",('Conversion Tables'!$N$12)/'Conversion Tables'!$N$12*Max_Point,0) -> 0 | BD19: =BC19*'Weighting Scale'!$H$17*BG19*BH19 -> 0 | BE19: 0 | BF19: 0 | BG19: 0 | BH19: =IF(C19=Dropdowns!$C$7,Dropdowns!$B$7,IF(C19=Dropdowns!$C$8,Dropdowns!$B$8,IF(C19=Dropdowns!$C$9,Dropdowns!$B$9,IF(C19=Dropdowns!$C$10,Dropdowns!$B$10,IF(C19=Dropdowns!$C$11,Dropdowns!$B$11,IF(C19=Dropdowns!$C$12,Dropdowns!$B$12,IF(C19=Dropdowns!$C$13,Dropdowns!$B$13,IF(C19=Dropdowns!$C$14,Dropdowns!$B$14,IF(C19=Dropdowns!$C$15,Dropdowns!$B$15,IF(C19=Dropdowns!$C$16,Dropdowns!$B$16,IF(C19=Dropdowns!$C$17,Dropdowns!$B$17,IF(C19=Dropdowns!$C$18,Dropdowns!$B$18,IF(C19=Dropdowns!$C$19,Dropdowns!$B$19,IF(C19=Dropdowns!$C$20,Dropdowns!$B$20,IF(C19=Dropdowns!$C$21,Dropdowns!$B$21,IF(C19=Dropdowns!$C$22,Dropdowns!$B$22,IF(C19=Dropdowns!$C$23,Dropdowns!$B$23,IF(C19=Dropdowns!$C$24,Dropdowns!$B$24,IF(C19=Dropdowns!$C$25,Dropdowns!$B$25,IF(C19=Dropdowns!$C$26,Dropdowns!$B$26,IF(C19=Dropdowns!$C$27,Dropdowns!$B$27,IF(C19=Dropdowns!$C$28,Dropdowns!$B$28,IF(C19=Dropdowns!$C$29,Dropdowns!$B$29,IF(C19=Dropdowns!$C$30,Dropdowns!$B$30,IF(C19=Dropdowns!$C$31,Dropdowns!$B$31,IF(C19=Dropdowns!$C$32,Dropdowns!$B$32,IF(C19=Dropdowns!$C$33,Dropdowns!$B$33,IF(C19=Dropdowns!$C$34,Dropdowns!$B$34,IF(C19=Dropdowns!$C$35,Dropdowns!$B$35,IF(C19=Dropdowns!$C$36,Dropdowns!$B$36,IF(C19=Dropdowns!$C$37,Dropdowns!$B$37,IF(C19=Dropdowns!$C$38,Dropdowns!$B$38,IF(C19=Dropdowns!$C$39,Dropdowns!$B$39,IF(C19=Dropdowns!$C$40,Dropdowns!$B$40,IF(C19=Dropdowns!$C$41,Dropdowns!$B$41,IF(C19=Dropdowns!$C$42,Dropdowns!$B$42,IF(C19=Dropdowns!$C$43,Dropdowns!$B$43,IF(C19=Dropdowns!$C$44,Dropdowns!$B$44,IF(C19=Dropdowns!$C$45,Dropdowns!$B$45,IF(C19=Dropdowns!$C$46,Dropdowns!$B$46,"0")))))))))))))))))))))))))))))))))))))))) -> 0 | BI19: =IF(F19=Dropdowns!$F$15,Dropdowns!$G$15,IF(F19=Dropdowns!$F$16,Dropdowns!$G$16,IF(F19=Dropdowns!$F$17,Dropdowns!$G$17,"0"))) -> 0

Sheet Conversion Tables (hidden)
A1: City of Winnipeg
A2: Net Present Value Template
A3: Conversion Tables
B5: Maintain LOS Benefits | G5: Other Benefits | P5: Residual Risk
B6: Score | C6: Maintain LOS | G6: Score | H6: Enhance LOS | I6: New Regulation | J6: Enable Growth | K6: Economy | L6: Environment | M6: Operational Efficiency | N6: Culture/ Heritage | P6: Rating | Q6: Score
C7: Essential | D7: Quality | E7: Image | P7: VLVL | Q7: 1
B8: VLVL | C8: 1 | D8: 1 | E8: 1 | G8: VL | H8: 1 | I8: 1 | J8: 1 | K8: 1 | L8: 1 | M8: 1 | N8: 1 | P8: VLL | Q8: 3
B9: VLL | C9: 3 | D9: 3 | E9: 3 | G9: L | H9: 3 | I9: 3 | J9: 3 | K9: 3 | L9: 3 | M9: 3 | N9: 3 | P9: VLM | Q9: 10
B10: VLM | C10: 10 | D10: 10 | E10: 10 | G10: M | H10: 10 | I10: 10 | J10: 10 | K10: 10 | L10: 10 | M10: 10 | N10: 10 | P10: VLH | Q10: 30
B11: VLH | C11: 30 | D11: 30 | E11: 30 | G11: H | H11: 30 | I11: 30 | J11: 30 | K11: 30 | L11: 30 | M11: 30 | N11: 30 | P11: VLVH | Q11: 100
B12: VLVH | C12: 100 | D12: 100 | E12: 100 | G12: VH | H12: 100 | I12: 100 | J12: 100 | K12: 100 | L12: 100 | M12: 100 | N12: 100 | P12: LVL | Q12: 3
B13: LVL | C13: 3 | D13: 3 | E13: 3 | P13: LL | Q13: 9
B14: LL | C14: 9 | D14: 9 | E14: 9 | P14: LM | Q14: 30
B15: LM | C15: 30 | D15: 30 | E15: 30 | P15: LH | Q15: 90
B16: LH | C16: 90 | D16: 90 | E16: 90 | P16: LVH | Q16: 300
B17: LVH | C17: 300 | D17: 300 | E17: 300 | P17: MVL | Q17: 10
B18: MVL | C18: 10 | D18: 10 | E18: 10 | P18: ML | Q18: 30
B19: ML | C19: 30 | D19: 30 | E19: 30 | P19: MM | Q19: 100
B20: MM | C20: 100 | D20: 100 | E20: 100 | P20: MH | Q20: 300
B21: MH | C21: 300 | D21: 300 | E21: 300 | P21: MVH | Q21: 1000
B22: MVH | C22: 1000 | D22: 1000 | E22: 1000 | P22: HVL | Q22: 30
B23: HVL | C23: 30 | D23: 30 | E23: 30 | P23: HL | Q23: 90
B24: HL | C24: 90 | D24: 90 | E24: 90 | P24: HM | Q24: 300
B25: HM | C25: 300 | D25: 300 | E25: 300 | P25: HH | Q25: 900
B26: HH | C26: 900 | D26: 900 | E26: 900 | P26: HVH | Q26: 3000
B27: HVH | C27: 3000 | D27: 3000 | E27: 3000 | P27: VHVL | Q27: 100
B28: VHVL | C28: 100 | D28: 100 | E28: 100 | P28: VHL | Q28: 300
B29: VHL | C29: 300 | D29: 300 | E29: 300 | P29: VHM | Q29: 1000
B30: VHM | C30: 1000 | D30: 1000 | E30: 1000 | P30: VHH | Q30: 3000
B31: VHH | C31: 3000 | D31: 3000 | E31: 3000 | P31: VHVH | Q31: 10000
B32: VHVH | C32: 10000 | D32: 10000 | E32: 10000 | P32: "" | Q32: 0

Sheet Dropdowns (hidden)
A1: City of Winnipeg
A2: Net Present Value Template
A3: Dropdown Menus
B5: BASE 3
A6: Select from list | B6: Base3 | C6: Select from list | F6: Select from list
A7: Assessment & Taxation | B7: 441 | C7: Active Transportation | F7: Project
A8: Assets and Project Management | B8: 143 | C8: Animal Services (SOA) | F8: Program
A9: Audit | B9: 10 | C9: Arts, Entertainment & Culture | I9: Select from list | O9: Matrix | P9: Scale
A10: Chief Administrative Offices | B10: 441 | C10: Assessment, Taxation and Corporate | F10: Select from list | I10: Maintain LOS | L10: Quality | O10: VLVL | P10: VL
A11: Chief Financial Officer | B11: 441 | C11: Bridges - Local | F11: Yes | L11: Reliability | O11: VLL | P11: L
A12: City Clerks | B12: 664 | C12: Bridges - Regional | F12: No | L12: Condition | O12: VLM | P12: M
A13: Community Services | B13: 10 | C13: Cemeteries | O13: VLH | P13: H
A14: Corporate Finance | B14: 143 | C14: City Beautification | F14: Service Impact | I14: Enhance LOS | L14: Quality | O14: VLVH | P14: VH
A15: Customer Service and Communications | B15: 441 | C15: City Planning | F15: Direct | G15: 1 | L15: Reliability | O15: LVL
A16: Emergency Preparedness Program | B16: 441 | C16: Community Liveability | F16: Indirect | G16: 0.5 | O16: LL
A17: Employee Benefits | B17: 441 | C17: Contact Centre - 311 | F17: Supplemental/Support | G17: 0.1 | O17: LM
A18: Fire Paramedic Service | B18: 441 | C18: Development Approvals, Building Permits & Inspections | O18: LH
A19: Innovation and Technology | B19: 143 | C19: Economic Development | F19: Select from List | O19: LVH
A20: Legal Services | B20: 903 | C20: Emergency Management | F20: 1 | O20: MVL
A21: Mayor's Office | B21: 903 | C21: Fire & Injury Prevention | F21: 2 | O21: ML
A22: Planning, Property, and Development | B22: 903 | C22: Fire & Rescue Response | F22: 3 | O22: MM
A23: Public Works | B23: 10 | C23: Golf Services (SOA) | F23: 4 | O23: MH
A24: Water and Waste | B24: 10 | C24: Heritage Conservation | F24: 5 | O24: MVH
A25: Winnipeg Police Service | B25: 143 | C25: Insect Control | O25: HVL
A26: Winnipeg Transit | B26: 664 | C26: Land Drainage & Flood Control | F26: Select from list | O26: HL
B27: 143 | C27: Libraries | F27: Funded | O27: HM
B28: 903 | C28: Medical Response | F28: Unfunded | O28: HH
B29: 664 | C29: Multiple Organizational Support Services | O29: HVH
B30: 143 | C30: Neighborhood Revitalization | O30: VHVL
B31: 143 | C31: Parking (SOA) | O31: VHL
B32: 143 | C32: Parks - Local | O32: VHM
B33: 441 | C33: Parks - Regional | O33: VHH
B34: 903 | C34: Police Response/Crime Prevention | O34: VHVH
B35: 441 | C35: Property Asset Management
B36: 664 | C36: Public Transit
B37: 143 | C37: Recreation
B38: 143 | C38: Recycling & Waste Diversion
B39: 441 | C39: Roads - Local
B40: 664 | C40: Roads - Regional
B41: 664 | C41: Solid Waste Collection
B42: 664 | C42: Solid Waste Disposal
B43: 441 | C43: Transportation Planning and Traffic Management
B44: 441 | C44: Urban Forestry
B45: 1000 | C45: Wastewater
B46: 1000 | C46: Water
A47: NPV OPTION TABS
A49: Capex Categories
A50: Pre-Construction
A51: Construction
A52: Decommission
A53: Equipment
A54: Interest Charges
A55: Capex Benefit
A57: Opex Categories
A58: Operate
A59: Maintain
A60: Salaries & Benefits
A61: Debt & Financing Charges
A62: Opex Benefit
A64: STATUS QUO TAB
A66: Opex Categories
A67: Operate
A68: Maintain
A69: Salaries & Benefits

Sheet Weighting Scale (hidden)
A1: City of Winnipeg
A2: Net Present Value Template
A3: Weightnig Criteria
C5: Multiplying Factor (f) - Original | D5: 2469
C6: Multiplying Factor (f) - Modified | D6: 10000 | E6: Refered to as Max_Point in formulas | M6: Exponential Distribution w/ Usage and Importance
M7: Factor (f) | N7: 10000
G9: Modified (Adjustments - 2020 Budget Cycle) | M9: Weight | N9: 0.31
G10: New Regulation | H10: 0.31 | I10: 0.31 | M10: New Regulation | O10: 3100000
G11: Maintain LOS | H11: 0.31 | I11: 0.31 | N11: f=1 | O11: 310
G12: Enhance Level of Service | H12: 0.07 | I12: 0.07 | M12: Weight | N12: 0.31
G13: Growth | H13: 0.07 | I13: 0.07 | M13: Maintain LOS | O13: 3099690
G14: Economy | H14: 0.07 | I14: 0.07 | N14: f=1 | O14: 309.969 | S14: MAX
G15: Environmental | H15: 0.07 | I15: 0.07 | M15: Weight | N15: 0.07 | Q15: Usage Multiplier | S15: 1
G16: Operational Efficiency | H16: 0.07 | I16: 0.07 | M16: Enhance LOS | O16: 700000 | Q16: Importance Multiplier | S16: 1000
G17: Culture/Heritage | H17: 0.03 | I17: 0.03 | N17: f=1 | O17: 70
H18: 1 | I18: 1 | M18: Weight | N18: 0.07
M19: Environment | O19: 700000
H20: Multiplier | N20: f=1 | O20: 70
G21: Score | H21: Usage | I21: Importance | M21: Weight | N21: 0.07
G22: VL | H22: 1 | I22: 1 | M22: Enable Growth | O22: 700000
G23: L | H23: 3 | I23: 3 | N23: f=1 | O23: 70
G24: M | H24: 10 | I24: 10 | M24: Weight | N24: 0.07
G25: H | H25: 30 | I25: 30 | M25: Economy | O25: 700000
G26: VH | H26: 100 | I26: 100 | N26: f=1 | O26: 70
G27: Max Scale (Factor of 10) | H27: 100 | I27: 0 | M27: Weight | N27: 0.07
M28: Oper. Efficiency | O28: 700000
N29: f=1 | O29: 70
M30: Weight | N30: 0.03
M31: Culture/Heritage | O31: 300000
N32: f=1 | O32: 30
N35: Max Benefit | O35: 9999690
N36: Factor check | O36: 10000
N37: New Factor | O37: 10000.31001
